Workbook

Sheet Cover Page
D1: Add company logo
N2: Version 24.2a (for incinerators) - 27/11/24
N4: Note that there is another version of this template available for co-incinerators
B8: Add photo
N13: Notes:
N14: This template may require adjustments by individual operators to meet specific reporting requirements as defined in the site Permit(s)
B29: Annual Performance Report 2024
B31: Permit EPR/HP3247QS
B33: Dudley Energy from Waste
B35: other name of facility (if applicable)
B37: Urbaser Environmental Ltd
B39: Year: | C39: 2024
B41: Address: | C41: Lister Road, Dudley, DY2 8YT
B43: Tel: | C43: 01384 900729
B45: Email: | C45: carl.pearce@fccenvironment.co.uk
B47: Prepared by: | C47: Carl Pearce | F47: Position: | G47: QHSE Advisor
B49: Approved by: | C49: Jacob Towl | F49: Position: | G49: QHSE Manager
B51: Version: | C51: 1
B53: Issue Date: | C53: 2025-01-27

Sheet Facility Info
A1: =+'Cover Page'!$B$29 -> Annual Performance Report 2024 | E1: =+'Cover Page'!$B$33 -> Dudley Energy from Waste
A3: Plant Description and Design | K3: Notes:
A5: The main purpose of the activity at the installation is to burn municipal waste and to recover energy in the form of steam and electricity for export to the local grid. The installation includes waste receipt and storage, the waste heat boilers, the abatement of the exhaust gas, the on-site storage of residues and all systems for controlling and monitoring incinerator operation. The plant is designed to process approximately 105,000 tonnes of waste per annum/12 tonnes per hour in two combustion streams. The heat produced is used to generate 7.145 MW of electricity. | K5: Include summary of plant design, design capacity, no. of combustion lines, electrical and heat capacity and any other general information that describes the facility, its location and purpose
A20: Summary of Operational Processes and Procedures
A22: The material is loaded into each of the furnaces via feed hoppers from a reception hall, where the waste vehicles deposit their loads into the storage bunkers. After entering the combustion chamber via the refuse feed ram the material is allowed to fall onto the grate in a controlled manner. The moving grate mechanisms are used to agitate the waste as it progresses down to the ash discharge. As the waste moves along, primary air is introduced from beneath the grate causing the waste to go through a series of drying and burning areas. Secondary air is introduced from above the grate for combustion control. Auxiliary oil fired burners are located in the combustion chambers both to heat it up on start up and to maintain the final gas temperature. The hot gases are maintained at a minimum temperature of 850°C for 2 seconds in the combustion chamber before passing to the boiler, economiser and abatement plant. Each furnace is equipped with a 2-pass water tube boiler raising steam at 45 bar and 355°C. Economisers are fitted down stream of each boiler unit to pre-heat the incoming feed water. Each incinerator line is provided with its own gas cleaning and monitoring equipment. Gas cleaning comprises urea injection, activated carbon injection, semi-dry scrubbing using milk of lime spray followed by bag filters prior to discharge to atmosphere via two flues contained in one 47 m stack. Emissions from the stack are continuously monitored for particulates, carbon monoxide (CO), ammonia, sulphur dioxide (SO2), hydrogen chloride (HCl), oxygen (O2), nitrogen oxides (NOx) and volatile organic compounds (VOC). There is no discharge of process liquids to controlled waters. Uncontaminated surface and roof waters are discharged to the surface water sewer system. | K22: Include summary of key processes and procedures such as (but not limited to); waste reception, control rooms, grate, bed and boiler, energy & heat generation, cooling systems, residue management, emission controls, health and safety systems, maintenance

Sheet Contents
A1: =+'Cover Page'!$B$29 -> Annual Performance Report 2024 | E1: =+'Cover Page'!$B$33 -> Dudley Energy from Waste
A3: Contents | K3: Notes:
A4: Section | B4: Subject | H4: Page | K4: Section references and Page nos. to be inserted
B5: Facility Information | K5: Sections and Subjects may require adjustment by individual operators to meet specific reporting requirements as defined in the sites Permit(s)
B6: Operational Data
B7: Operational Summary
B8: Performance Form 1
B9: Energy Form 1
B10: Permit Compliance
B11: Improvements
B12: Public Liaison
B13: Carbon dioxide and nitrous oxide emissions
B14: Residue Quality
B15: Emissions to Water
B16: Emissions to Air (periodically monitored)
B17: Emissions to Air (continuously monitored)
B18: Hydrogen Chloride emissions
B19: Sulphur Dioxide emissions
B20: Oxides of Nitrogen emissions
B21: Total Organic Carbon emissions
B22: Particulate Matter emissions
B23: Carbon Monoxide emissions
B24: Ammonia emissions
A27: Version Control
A28: Section | B28: Information | H28: Date
A35: Distribution
A36: Copy | B36: Name, Role | H36: No.
A45: This report is required under the Industrial Emissions Directive’s Article 55(2) requirements on reporting and public information on waste incineration plants and co-incineration plants, which require the operator to produce an annual report on the functioning and monitoring of the plant and make it available to the public.

Sheet Operational Data
A1: =+'Cover Page'!$B$29 -> Annual Performance Report 2024 | E1: =+'Cover Page'!$B$33 -> Dudley Energy from Waste
A3: Operational Data
A4: Plant Size | B4: 105000 | D4: tonnes pa | F4: MWth | G4: 7.145 | H4: MWe | J4: Notes:
A5: No. of combustion lines | B5: 2 | D5: No. of Turbines: | F5: 1 | J5: * - RDF to include SRF
J6: ** - Combusted tonnage = tonnes delivered in period + (tonnes in bunker at start of period – tonnes in bunker at end of period), or equivalent calculation depending on plant type
A7: Waste types received | B7: Unit | C7: Q1 | D7: Q2 | E7: Q3 | F7: Q4 | G7: Year Total | H7: %
A8: Household / Local Authority | B8: tonnes | C8: 20533.55 | D8: 17897.03 | E8: 18035.01 | F8: 17875.69 | G8: =SUM(C8:F8) -> 74341.28 | H8: =IF(G8>0,G8/$G$18,"-") -> 0.8674741871
A9: Commercial & Industrial | C9: 2008.98 | D9: 2041.5 | E9: 3982.58 | F9: 3324.21 | G9: =SUM(C9:F9) -> 11357.27 | H9: 0.1325258129 | J9: *** - CHP plants only
A10: Hazardous | G10: 0 | H10: - | J10: **** Availability Definition: 'the availability of a line is to be calculated by the number of hours the line reported Continuously Monitored emission levels to the Regulator through the calendar year divided by the total number of hours in that year. The overall plant availability is calculated as the Mean of all lines in the plant. For clarity this includes periods of abnormal operation.' Rationale: The primary function of an Energy from Waste facility is the disposal of waste. It follows therefore that the availability of a plant is determined by the period of time a facility spends undertaking this activity.
A11: Clinical | G11: 0 | H11: -
A12: Waste wood (biomass) | G12: 0 | H12: -
A13: Refuse Derived Fuel * - H'hold/LA | G13: =SUM(C13:F13) -> 0 | H13: -
A14: Refuse Derived Fuel * - C&I | G14: 0 | H14: -
A15: Other [Please specify] | G15: 0 | H15: -
A16: Other [Please specify] | G16: 0 | H16: -
A17: Other [Please specify] | G17: 0 | H17: -
A18: Total waste received | C18: =SUM(C8:C17) -> 22542.53 | D18: =SUM(D8:D17) -> 19938.53 | E18: =SUM(E8:E17) -> 22017.59 | F18: =SUM(F8:F17) -> 21199.9 | G18: 85698.55
A19: Rejected Waste | G19: =SUM(C19:F19) -> 0 | H19: =IF(G19>0,G19/$G$18,"-") -> -
A20: Unprocessed waste transferred out | C20: 3170.12 | D20: 7274.23 | E20: 765 | F20: 382.8 | G20: =SUM(C20:F20) -> 11592.15 | H20: =IF(G20>0,G20/$G$18,"-") -> 0.1352665827
A21: Total waste combusted ** | C21: 19094.5 | D21: 18846.3 | E21: 25755.9 | F21: 22573.1 | G21: =SUM(C21:F21) -> 86269.8
J22: Password for protected cells A password has been set to prevent accidental editing of cells with formulae. If you still need to make an edit for some reason then the password = 1234
A23: Energy Usage / Export | B23: Unit | C23: Q1 | D23: Q2 | E23: Q3 | F23: Q4 | G23: Year Total | H23: KWh/te
A24: Power Generated | B24: MWh | C24: 8179 | D24: 7448 | E24: 11327 | F24: 10144 | G24: =SUM(C24:F24) -> 37098 | H24: =IF(G24>0,G24*1000/$G$21,"-") -> 430.0230208
A25: Power Exported | C25: 6562 | D25: 5927 | E25: 9383 | F25: 8272 | G25: =SUM(C25:F25) -> 30144 | H25: =IF(G25>0,G25*1000/$G$21,"-") -> 349.4154385
A26: Power Used on site | C26: 2091.599 | D26: 2818.278 | E26: 2367.415 | F26: 2370.29 | G26: =SUM(C26:F26) -> 9647.582 | H26: =IF(G26>0,G26*1000/$G$21,"-") -> 111.8303508
A27: Power Imported | C27: 100.6 | D27: 105.8 | E27: 7.3 | F27: 50.2 | G27: =SUM(C27:F27) -> 263.9 | H27: =IF(G27>0,G27*1000/$G$21,"-") -> 3.059007903
A28: Parasitic Load | B28: % | C28: =IF(C24>0,1-C25/(C24+C27),"-") -> 0.2074496352 | D28: =IF(D24>0,1-D25/(D24+D27),"-") -> 0.2153618047 | E28: =IF(E24>0,1-E25/(E24+E27),"-") -> 0.1721588453 | F28: =IF(F24>0,1-F25/(F24+F27),"-") -> 0.1885581998 | G28: =IF(G24>0,1-G25/(G24+G27),"-") -> 0.1931887832
A29: Thermal Energy Produced *** | B29: MWh | G29: =SUM(C29:F29) -> 0 | H29: =IF(G29>0,G29*1000/$G$21,"-") -> -
A30: Thermal Energy Exported *** | G30: =SUM(C30:F30) -> 0 | H30: =IF(G30>0,G30*1000/$G$21,"-") -> -
A31: R1 value (if applicable) | B31: R1
A33: Waste Disposal & Recovery | B33: Unit | C33: Q1 | D33: Q2 | E33: Q3 | F33: Q4 | G33: Year Total | H33: % inputs
A34: APC Residues - produced | B34: tonnes | C34: 683.88 | D34: 750.64 | E34: 1028.26 | F34: 810.58 | G34: =SUM(C34:F34) -> 3273.36 | H34: =IF(G34>0,G34/$G$21,"-") -> 0.03794328954
A35: IBA - produced | C35: 3701.64 | D35: 3416.76 | E35: 4857 | F35: 4732.45 | G35: 16707.85 | H35: 0.1936697431
A36: Metals recycling | G36: 0 | H36: -
A37: Other | C37: 0 | D37: 0 | E37: 0 | F37: 0 | G37: 0 | H37: -
A38: Other | C38: 0 | D38: 0 | E38: 0 | F38: 0 | G38: 0 | H38: -
A39: Other | C39: 0 | D39: 0 | E39: 0 | F39: 0 | G39: 0 | H39: -
A41: Raw Material Usage | B41: Unit | C41: Q1 | D41: Q2 | E41: Q3 | F41: Q4 | G41: Year Total | H41: kg or Ltr /te
A42: Mains Water | B42: ltrs | C42: 11677 | D42: 13674 | E42: 14948 | F42: 9730 | G42: =SUM(C42:F42) -> 50029 | H42: =IF(G42>0,G42/$G$21,"-") -> 0.5799132489
A43: Other Water | B43: ltrs | G43: 0 | H43: =IF(G43>0,G43/$G$21,"-") -> -
A44: Ammonia | B44: kgs | G44: 0 | H44: -
A45: Urea | B45: kgs | C45: 13296 | D45: 12304 | E45: 19067 | F45: 15471 | G45: =SUM(C45:F45) -> 60138 | H45: 0.6970921458
A46: Activated Carbon | B46: kgs | C46: 1500 | D46: 2000 | E46: 2500 | F46: 2500 | G46: 8500 | H46: 0.09852810601
A47: Lime / hydrated lime | B47: kgs | C47: 203560 | D47: 200560 | E47: 373740 | F47: 310820 | G47: 1088680 | H47: 12.61947982
A48: Fuel oil | B48: ltrs | C48: 22983 | D48: 8889 | E48: 8767 | F48: 19380 | G48: 60019 | H48: 0.6957127523
A49: Gas | B49: cuf | G49: 0
A50: Other | G50: 0
A52: Summary | B52: Line/Unit | C52: Q1 | D52: Q2 | E52: Q3 | F52: Q4 | G52: Year Total | I52: Hrs in year
A53: Availability of waste combustion by line, hrs **** | B53: 1 | C53: 1844.75 | D53: 1463.5 | E53: 2203.5 | F53: 2015.5 | G53: =SUM(C53:F53) -> 7527.25 | H53: =+G53/$I$53 -> 0.8569273679 | I53: 8784 | J53: Change this figure to 8784 in a leap year
B54: 2 | C54: 1560 | D54: 1671 | E54: 2068 | F54: 2035.25 | G54: 7334.25 | H54: =+G54/$I$53 -> 0.8349556011
B55: 3 | G55: 0 | H55: 0
B56: 4 | G56: 0 | H56: 0
B57: 5 | C57: 1702 | D57: 1567 | E57: 2136 | F57: 2025 | G57: =SUM(C57:F57) -> 7430 | H57: 0.845856102
A58: Overall Availability, mean avg. of all lines, hrs | G58: =AVERAGE(G53:G57) -> 4458.3 | H58: 0.5075478142
A59: Hours of turbine operations, hrs | B59: 1 | C59: 1924.25 | D59: 1848.5 | E59: 2199.5 | F59: 2133 | G59: 8105.25 | H59: 0.9227288251
A60: Hours of turbine operations, hrs | B60: 2 | G60: 0 | H60: 0
A61: Hours of heat / steam export | G61: 0 | H61: =IF(B61>0,G60/I53,"n/a") -> n/a
A62: Net Calorific Value of waste | B62: MJ/kg
A63: Abnormal Events | B63: qty. | C63: 2 | D63: 3 | E63: 4 | F63: 1 | G63: 10 | H63: =IF(G63>0,"yes","no") -> yes
A64: Abnormal operation | B64: hours | C64: 4.5 | D64: 4.5 | E64: 3.5 | F64: 0.5 | G64: 13 | H64: =+(G64)/I53 -> 0.00147996357
A65: Permit Breaches | B65: qty. | C65: 3 | D65: 3 | E65: 8 | F65: 3 | G65: 17 | H65: =IF(G65>0,"yes","no") -> yes

Sheet Operational Summary
A1: =+'Cover Page'!$B$29 -> Annual Performance Report 2024 | E1: =+'Cover Page'!$B$33 -> Dudley Energy from Waste
A3: Summary of Plant Operations and Maintenance during the reporting year | K3: Notes:
A5: Both boilers were in operation for a combined operation total of 14861 hours, with the turbine available 8105 hours. Downtime included the annual outage along with smaller outages for boiler & maintenance issues. | K5: Include summary of key operational and/or maintenance activity undertaken in the year, such as any major component upgrades and/or replacements
A29: Summary of Residue Handling for the reporting year
A31: The facility has sent the IBA for processing and recycling in Derbyshire, APCr has been sent to Peterborough. | K31: Include in here a summary of residue handling regimes and destinations
A54: =+'Cover Page'!C39 -> 2024 | B54: Plant shut-downs
A55: Date | B55: Reason for shut-down | K55: Provide a very brief reason for plant shut-down e.g. "Shut-down prior to major outage"; "Emergency shut-down due to boiler tube leak" There is no need to include periods of hot-standby here (e.g. to clear feed chute hopper blockages). For clinical waste incinerators which require regular shut-downs for boiler cleaning, there is no need to record these here.
A56: 2024-05-01 | B56: Annual Outage

Sheet Perf. Form 1
A1: =+'Cover Page'!C39 -> 2024 | B1: Annual Reporting Performance Form 1
A3: =+'Cover Page'!B31 -> Permit EPR/HP3247QS | F3: Operator: | G3: =+'Cover Page'!B37 -> Urbaser Environmental Ltd
A4: Facility: | B4: =+'Cover Page'!B33:I33 -> Dudley Energy from Waste | F4: Form: | G4: Performance 1
A6: Reporting Period from: | F6: to:
A8: =+A1 -> 2024 | B8: Annual Reporting of Waste Disposal and Recovery
A9: Waste Description | C9: Disposal Route(s) | E9: Disposal Tonnes | G9: Recovery Tonnes | I9: % / tonne of waste incinerated
A10: 1) Hazardous Wastes
A11: APC Residues | C11: D01 | E11: 3273 | I11: =IF((E11+G11)>0,(E11+G11)/'Operational Data'!$G$21, "-") -> 0.03793911659
A12: IBA | I12: =IF((E12+G12)>0,(E12+G12)/'Operational Data'!$G$21, "-") -> -
I13: =IF((E13+G13)>0,(E13+G13)/'Operational Data'!$G$21, "-") -> -
I14: =IF((E14+G14)>0,(E14+G14)/'Operational Data'!$G$21, "-") -> -
A15: Total Hazardous Waste | E15: =SUM(E11:F14) -> 3273 | G15: =SUM(G11:H14) -> 0 | I15: =IF((E15+G15)>0,(E15+G15)/'Operational Data'!$G$21, "-") -> 0.03793911659
A17: 2) Non-Hazardous Wastes
A18: IBA | C18: R05 | G18: 16708 | I18: =IF((E18+G18)>0,(E18+G18)/'Operational Data'!$G$21, "-") -> 0.1936714818
A19: Ferrous Metal | I19: =IF((E19+G19)>0,(E19+G19)/'Operational Data'!$G$21, "-") -> -
A20: Process Water | I20: =IF((E20+G20)>0,(E20+G20)/'Operational Data'!$G$21, "-") -> -
I21: =IF((E21+G21)>0,(E21+G21)/'Operational Data'!$G$21, "-") -> -
I22: =IF((E22+G22)>0,(E22+G22)/'Operational Data'!$G$21, "-") -> -
A23: Total Non-Hazardous Waste | E23: =SUM(E18:F22) -> 0 | G23: =SUM(G18:H22) -> 16708 | I23: =IF((E23+G23)>0,(E23+G23)/'Operational Data'!$G$21, "-") -> 0.1936714818
A24: TOTAL WASTE | E24: =+E23+E15 -> 3273 | G24: =+G23+G15 -> 16708 | I24: =IF((E24+G24)>0,(E24+G24)/'Operational Data'!$G$21, "-") -> 0.2316105984
A26: Operator’s comments :
A31: =+A1 -> 2024 | B31: Annual Reporting of Water and Other Raw Material Usage
A32: Raw Material | E32: Usage | G32: Unit | H32: Specific Usage | J32: Unit
A33: Mains Water | E33: =+'Operational Data'!G42/1000 -> 50.029 | G33: m3 | H33: =IF(E33>0,E33/'Operational Data'!$G$21,"-") -> 0.0005799132489 | J33: m3/te
A34: Total Water | E34: =+'Operational Data'!G43+'Operational Data'!G42/1000 -> 50.029 | G34: m3 | H34: =IF(E34>0,E34/'Operational Data'!$G$21,"-") -> 0.0005799132489 | J34: m3/te
A35: Urea / Ammonia | E35: 60138 | G35: kg | H35: =IF(E35>0,E35/'Operational Data'!$G$21,"-") -> 0.6970921458 | J35: kg/te
A36: Activated Carbon | E36: =+'Operational Data'!G46 -> 8500 | G36: kg | H36: =IF(E36>0,E36/'Operational Data'!$G$21,"-") -> 0.09852810601 | J36: kg/te
A37: Lime / hydrated lime / Sodium Bicarb. | E37: =+'Operational Data'!G47 -> 1088680 | G37: kg | H37: =IF(E37>0,E37/'Operational Data'!$G$21,"-") -> 12.61947982 | J37: kg/te
A39: Operator’s comments :
A43: =+A31 -> 2024 | B43: Annual Reporting of other performance indicators
A44: Parameter | C44: Results by Line
C45: A1 | D45: A2 | E45: A3 | F45: A4 | G45: A5 | I45: Turbine 1 | J45: Turbine 2
A46: Operating hours for the year, hours | C46: 7527.25 | D46: 7334.25
A47: Number of periods of abnormal operation, qty. | C47: 5 | D47: 5
A48: Cumulative hours of abnormal operation for this year, hours | C48: 7.5 | D48: 4.5
A50: Operator’s comments :
A54: Signed: | B54: Carl Pearce | G54: Date: | H54: 2025-01-27

Sheet Energy Form 1
A1: =+'Cover Page'!C39 -> 2024 | B1: Annual Reporting of Energy Usage/Export
A3: =+'Cover Page'!B31 -> Permit EPR/HP3247QS | F3: Operator: | G3: =+'Cover Page'!B37 -> Urbaser Environmental Ltd
A5: Facility: | B5: =+'Cover Page'!B33:I33 -> Dudley Energy from Waste | F5: Form: | G5: Energy 1
A7: Reporting Period from: | D7: =+'Perf. Form 1'!D6:E6 -> 00:00:00 | F7: to: | G7: =+'Perf. Form 1'!G6:H6 -> 00:00:00
A9: Energy Source | D9: Energy Usage | F9: Unit | G9: Specific Usage (KWh/tonne incinerated
A10: Electricity Produced | D10: =+'Operational Data'!G24 -> 37098 | F10: MWh | G10: =+'Operational Data'!H24 -> 430.0230208
A11: Electricity Imported | D11: =+'Operational Data'!G27 -> 263.9 | F11: MWh | G11: =+'Operational Data'!H27 -> 3.059007903
A12: Electricity Exported | D12: =+'Operational Data'!G25 -> 30144 | F12: MWh | G12: =+'Operational Data'!H25 -> 349.4154385
A13: Gas Oil | D13: 51.02 | F13: tonnes
A14: Steam/hot water exported | D14: =+'Operational Data'!G30 -> 0 | F14: GWh | G14: =+'Operational Data'!H30 -> -
A18: Operator’s comments :
A29: Signed: | B29: Carl Pearce | G29: Date: | H29: 2025-01-27

Sheet Permit Compliance
A1: =+'Cover Page'!$B$29 -> Annual Performance Report 2024 | E1: =+'Cover Page'!$B$33 -> Dudley Energy from Waste
A3: Summary of Permit Compliance
A5: Compliance with permit limits for continuously monitored pollutants
A7: The plant met its emission limits as shown in the table below:
A8: Substance | C8: Percentage time compliant during operationNote 1 | L8: Notes:
C9: Half-hourly limit | F9: Daily limit | L9: Note 1: Please report to 2 decimal places, i.e. xx.xx% Note 2: Please enter into this table any permit non-compliances that the EA has given a CCS score for. Please also enter any other non-compliances which you have notified to the EA (e.g. ELV exceedances) but which have not yet been assessed by the EA. There is no need to enter any notifications which were subsequently assessed by the EA not to be permit breaches. Note 3: Please enter information here (rather than just referencing the notifications that were sent to the EA) including where relevant the incineration line reference, pollutant and value of the measured result for any ELV exceedances.
A10: Particulates | C10: 1 | F10: 1
A11: Oxides of nitrogen | C11: 1 | F11: 0.9999
A12: Sulphur dioxide | C12: 0.9997 | F12: 1
A13: Carbon monoxide | C13: 100% 95% of 10-min averages | F13: 1
A14: Total organic carbon | C14: 0.9999 | F14: 1
A15: Hydrogen chloride | C15: 0.9995 | F15: 0.9999
A16: Hydrogen fluoride | C16: 1 | F16: 1
A17: NH3 Ammonia | C17: 1 | F17: 0.9999
A19: Summary of non-compliances under the permit Note 2
A20: Date | B20: Summary of non-compliance Note 3 | D20: Reason | G20: Measures taken to prevent reoccurrence | H20: CCS score if applicable*
H21: Impact | I21: Root cause
A22: 2024-02-13 | B22: A2 HCl Half Hour Limit 62.67mg/m3 | D22: Bulk delivery of 3rd party waste contained large amount of shredded plastic | G22: Plant operators instructed to thoroughly mix waste | H22: 0.1
A23: 2024-03-08 | B23: A2 NH3 Daily 16.38 mg/m3 | D23: Suspected tube leak within boiler 2 | G23: Primary control put in manual to adjust under fire air. Plant taken out of SP max reducing steam flow. Boiler then taken out of service
A24: 2024-03-22 | B24: A2 HCl & SO2 Half Hour Limits 86.98 & 249.55mg/m3 | D24: Lime turbine disc was being changed leading to high half hour limit | G24: Lime turbine disc changed & everything back within parameters | H24: 0.1
A25: 2024-04-25 | B25: A1 NOx Daily 180.49mg/m3 | D25: Feed screw inlet grid partially blocked. | G25: Grid removed & cleaned off. Target limit lowered for better response time. | H25: 0.1
A26: 2024-06-01 | B26: A2 NH3 Daily 15.62mg/m3 | D26: After bringing boiler 2 back on-line after annual outage, boiler 2 & turbine kept tripping throughout the day. NH3 levels spiked & unable to bring back within daily limit | G26: It was found that the Turbine steam drain faulted in the open position causing the Turbine & Boiler to trip. Steam drain isolators were closed bringing NH3 back within parameters | H26: 0.1
A27: 2024-06-21 | B27: A1 HCl Half Hour Limit 165.66mg/m3 | D27: Sudden drop on the back end temperature resulting in not enough lime being fed to boiler. | G27: Boiler pulled back to reduce tonnage throughput & to help increase steam flow. | H27: 0.1
A28: 2024-07-05 | B28: A1 HCl Half Hour Limit 152.81mg/m3 | D28: Elevated levels of HCl on CEMS were detected due to waste type from 08:00 - 08:29. 08:30 back to 5.59mg/m3 | G28: Lime slurry valve on stream 1 opened tp 100% | H28: 0.1
A29: 2024-07-08 | B29: A2 SO2 Half Hour Limit 226.17mg/m3 | D29: Elevated levels of SO2 were detected on CEMS leading to a half hour breach | G29: Lime slurry valve on stream 2 opened to 100% & baghouse inlet temperature reduced by 5 degrees. | H29: 0.1
A30: 2024-07-12 | B30: A2 HCl Half Hour Limit 86.81mg/m3 | D30: Experienced issue with poor quality third party waste | G30: 3rd party waste company spoken to & suspended from delivering to Dudley | H30: 0.1
A31: 2024-08-28 | B31: A1 HCl Half Hour Limit 78.89 mg/m3 | D31: Operations staff were conducting the weekly swap over of lime pumps. The pump that went into service wasn't performing as expected causing high HCL & SO2 reading. | G31: Staff flushed the lime pump & restored adequate flow. SO2 came down very quickly with no breach but HCl remained causing the half hour breach.
A32: 2024-08-29 | B32: A1 SO2 Half Hour Limit 205.73 mg/m3 | D32: Experienced issue with waste causing a spike in SO2 levels | G32: Lime flow increased & following half hour figure returned within normal parameters | H32: 0.1
A33: 2024-08-29 | B33: A2 HCl Half Hour Limits 265.09 & 330.72mg/m3 - SO2 Half Hour Limits 294.32 & 278.55mg/m3 & HCl Daily 19.43mg/m3 | D33: Combination of issue with waste and with the lime turbine. | G33: Lime turbine changed and lime dosing returned to normal | H33: 0.1
A34: 2024-09-23 | B34: A1 VOC Half Hour Limit 25.46mg/m3 | D34: No steam flow through boiler 1 | G34: Burner put in to increase steam flow | H34: 0.1
A35: 2024-09-24 | B35: A2 VOC Half Hour Limit 48.07mg/m3 | D35: Steam flow dropped significantly on boiler 2 causing spike in VOC. | G35: Burner put in to increase steam flow | H35: 0.1
A36: 2024-10-07 | B36: A1 NOx Daily 181.26mg/m3 | D36: Y piece on Urea supply pipe split resulting in low Urea being dosed | G36: Y piece on Urea supply pipe changed. Y piece was split on the inside so was not evident on checks.
A37: 2024-10-31 | B37: A1 NOx Daily 180.18mg/m3 | D37: Online cleaning was taking plave to reduce fouling from the boiler. Temps dropped rapidly so cleaning was stopped. | G37: Cleaning stopped. More regular & frequent cleaning should ensure temps remain constant. Schedule in place
A38: 2024-11-02 | B38: A1 NOx Daily 184.13mg/m3 | D38: Fluctuations all day on NOx half hour figures. Urea dosing ran in manual at 100% with limited success. | G38: Following firther investigation boiler 1 to be taken off-line as evidence of blockage or tube leak.
A45: *If the Environment Agency (EA) has given a Compliance Classification Scheme (CCS) score due to a permit non-compliance it should be entered here (CCS4 = No impact; CCS3 = Minor impact; CCS2 = Significant impact; CCS1 = Major impact). If the EA has not yet assessed a non-compliance which you have notified to them, these columns should be left blank. Enter N/A if no score was given for the root cause.
A47: Summary of any complaints received and actions to taken to resolve them.
A48: Date | B48: Summary of complaint [including Line/Reference] | E48: Reason (including whether substantiated by the operator or the EA) | H48: Measures taken to prevent reoccurrence

Sheet Improvements
A1: =+'Cover Page'!$B$29 -> Annual Performance Report 2024 | E1: =+'Cover Page'!$B$33 -> Dudley Energy from Waste
A3: Summary of Plant Improvements
A5: Summary of any efficiency improvements that have been completed within the year.
A6: Improvement of flue gas flow through the boiler, reduction in leaks by replacement of suspect tubes tested by NDT during outage.
A16: Summary of any permit improvement conditions that have been completed within the year and the resulting environmental benefits.
A17: Reduction of NOx and Ammonia levels
A27: Summary of any changes to the plant or operating techniques which required a variation to the permit and a summary of the resulting environmental impact.
A28: None
A38: Summary of any other improvements made to the plant or planned to be made and a summary of the resulting environmental benefits.

Sheet Public Liasion
A1: =+'Cover Page'!$B$29 -> Annual Performance Report 2024 | E1: =+'Cover Page'!$B$33 -> Dudley Energy from Waste
A3: Details of Public & Stakeholder Liaison
A5: Summary of events held during the reporting year.
A6: Date | C6: Description
A16: List of events planned for next year
A17: Date | C17: Description
A29: If you wish to be involved in the public liaison programme, please contact _________________

Sheet CO2 N2O
A1: =+'Cover Page'!$B$29 -> Annual Performance Report 2024 | C1: =+'Cover Page'!$B$33 -> Dudley Energy from Waste
A3: Carbon dioxide emissions and biogenic content of waste inputs | F3: Notes:
A5: Carbon dioxide emissions (all types of plant)
B6: Annual mass of carbon dioxide released | C6: tonnes | D6: 75895.87
B7: Annual mass of carbon dioxide released per tonne of waste burned | C7: t CO2 / t waste | D7: 0.88
B8: Annual mass of carbon dioxide released per MWh of energy exported | C8: t CO2 / MWh export | D8: 2.52
B9: Description of how annual carbon dioxide mass emission has been calculated. See Note 1 | C9: Use of CEMS to determine annual average CO2%, converted to mg/m3, multiplied by average stack flow multiplied by operational hours | F9: Note 1: All permits require operators to continuously monitor CO2 to EN14181 and flow to BS EN 16911-2 (unless otherwise agreed in writing). Operators must therefore use the results from these instruments to calculate their annual CO2 emissions. Where an operator does not have a flow meter calibrated to BS EN 16911-2, the averaged flow measurement from that year's periodic monitoring can be used instead. If the plant does not have calibrated CO2 CEMS, a suitably justified emissions factor can be used.
A10: Nitrous oxide emissions (only plants which use ammonia or urea to abate NOx emissions)
B11: Annual mass emissions of nitrous oxide | C11: tonnes N2O | D11: 9.74
B12: Description of how annual nitrous oxide mass emission has been calculated See Note 2 | C12: Annual average from CEMS, multiplie by annual average flow, multiplied by operational hours | F12: Note 2: All permits require operators to continuously monitor N2O to EN14181 and flow to BS EN 16911-2, unless otherwise agreed in writing. Operators must therefore use the results from these instruments to calculate their annual N2O emissions. Where an operator does not have a flow meter calibrated to BS EN 16911-2, the averaged flow measurement from periodic monitoring can be used instead. If the plant does not have calibrated N2O CEMS, data from periodic monitoring or a suitably justified emissions factor can be used instead.
A13: Total annual carbon dioxide + nitrous oxide emissions. See Note 3. | C13: tonnes CO2e | D13: 78477 | F13: Note 3: Total annual carbon dioxide and nitrous oxide emissions reported as carbon dioxide equivalent where 1 tonne nitrous oxide is equivalent to 265 tonnes carbon dioxide.
A14: Biogenic CO2 emissions (See Note 4) | F14: Note 4: Only plants combusting residual municipal waste, refuse derived fuel or solid recovered fuel need complete this section.
B15: Percentage of total carbon dioxide emissions arising from biogenic waste | C15: % | D15: 0.854
B16: No. of measurements undertaken | C16: Number | D16: 1
B17: Description of how percentage biogenic carbon dioxide emissions have been measured or calculated. See Note 5 | C17: Waste composition analysis undertaken by Socotec | F17: Note 5: The results from C14 sampling should be used if this is carried out at the plant (either via an installed sampler or from spot samples). Otherwise, as an approximation (and in lieu of any more accurate metrics which may be developed in future), the measured or estimated biogenic fraction by net calorific value (see Note 6) can be assumed to be the same as the biogenic CO2 fraction of the total CO2 emissions from the plant.
A18: Biogenic fraction of waste feedstock (See Note 4)
B19: Yearly average biogenic percentage of the waste by net calorific value (NCV) | C19: % | D19: 0.854
B20: Description of how biogenic percentage (by NCV) has been calculated or estimated. See Note 6 | C20: Waste composition analysis undertaken by Socotec method CA32 | F20: Note 6: If C14 sampling is carried out at the plant, the methodology set out in the embedded document entitled "Renewable Energy Association Energy Content of Fuels - Description of Method" embedded below can be used to calculate the biogenic percentage by net calorific value. Otherwise, data from waste sampling or BIOMA software can be used; or if none of these are available, an estimated figure with justification or a figure assumed on the basis of up-to-date industry data can be used.
B21: Yearly average biogenic percentage of the waste by mass | C21: %
B22: If waste sampling undertaken, no. of samples used to ascertain average biogenic percentages above | C22: Number | D22: 1
B23: Description of how biogenic percentage (by mass) has been calculated or estimated. See Note 7 | C23: Waste composition analysis undertaken by Socotec | F23: Note 7: Where available, data from waste sampling should be used; otherwise, an estimated figure with justification can be used, or a figure assumed on the basis of up-to-date industry data.
B25: Comments:

Sheet Residue Quality
A1: =+'Cover Page'!$B$29 -> Annual Performance Report 2024 | E1: =+'Cover Page'!$B$33 -> Dudley Energy from Waste
A3: Residue Quality Monitoring Requirements
A5: Summary of monitoring undertaken and compliance
A6: Twice monthly IBA core hazard assessment following the ESA protocol with an annual full hazardous assessment as in line with permit compliance
A13: Commentary on any specific events
A14: Date & Event | C14: Description
A27: Residue Quality Monitoring Results
A28: Parameter (unit) | C28: Limit* | D28: Normal Operation
D29: Bottom ash | F29: APC Residues
A30: Loss on Ignition (average %) | C30: <5% | D30: N/A
A31: Total Organic Carbon (average %) | C31: <3% | D31: 1.55
A32: No. of Assessments Undertaken | C32: --- | D32: 22 | F32: 4
A33: No. of Hazardous Results | C33: --- | D33: 0
A34: * The permit will specify a limit of either 5% loss on ignition or 3% total organic carbon. If both are measured anyway, please enter the results here, even where the limit does not apply.
A36: Comments :
A37: No hazardous results identified on the twice monthly samples.

Sheet Water
A1: =+'Cover Page'!$B$29 -> Annual Performance Report 2024 | E1: =+'Cover Page'!$B$33 -> Dudley Energy from Waste
A3: Emissions to Water
A5: Summary of monitoring undertaken and compliance
A13: Commentary on any specific events
A14: Date & Event | C14: Description
A22: Emissions to Water / Sewer
A23: Parameter | D23: Monitoring Frequency | F23: Limit | G23: Target | H23: Max. | I23: Average

Sheet Air (periodic)
A1: =+'Cover Page'!$B$29 -> Annual Performance Report 2024 | E1: =+'Cover Page'!$B$33 -> Dudley Energy from Waste
A3: Emissions to Air (periodically monitored)
A5: Summary of monitoring undertaken, standards used and compliance | K5: Notes:
K6: Template may require adjustment for any bespoke monitoring requirements of permit - please also check that all default ELV values, reference periods and the stated oxygen reference value match those for your plant, and edit if necessary!
A9: Results of emissions to air that are periodically monitored - oxygen reference 11%
A10: Substance | C10: Ref. Period | D10: Emission Limit Value | F10: Average | K10: User to add additional tables as necessary, depending on whether quarterly or bi-annual reporting is required for the compliance year
F11: A1 | G11: A2 | H11: A3 | I11: A4 | J11: A5
A12: Hydrogen fluoride | C12: 1 hr | D12: 1 mg/m3 | F12: 0.82 | G12: 0.795
A13: Cd and Tl and their compounds | C13: 0.5-8hrs | D13: 0.02 mg/m3 | F13: 0.0011 | G13: 0.0011
A14: Hg and its compounds | C14: 0.5-8hrs | D14: 0.02 mg/m3 | F14: 0.0039 | G14: 0.0044
A15: Sb, As, Pb, Cr, Co, Cu, Mn, Ni, V and their compounds | C15: 0.5-8hrs | D15: 0.3 mg/m3 | F15: 0.0185 | G15: 0.033
A16: Dioxins & Furans (I-TEQ) | C16: 6-8hrs | D16: 0.06 ng/m3 | F16: 0.0127 | G16: 0.0219
A17: PCBs (WHO-TEQ Humans / Mammals) | C17: 6-8hrs | D17: None set ng/m3 | F17: 0.001 | G17: 0.003
A18: PCBs (WHO-TEQ Fish) | C18: 6-8hrs | D18: None set ng/m3 | F18: 6e-05 | G18: 0.00015
A19: PCBs (WHO-TEQ Birds) | C19: 6-8hrs | D19: None set ng/m3 | F19: 0.0029 | G19: 0.0063
A20: Dioxins & Furans (WHO-TEQ Humans / Mammals) | C20: 6-8hrs | D20: None set ng/m3 | F20: 0.01 | G20: 0.018
A21: Dioxins & Furans (WHO-TEQ Fish) | C21: 6-8hrs | D21: None set ng/m3 | F21: 0.0231 | G21: 0.021
A22: Dioxins & Furans (WHO-TEQ Birds) | C22: 6-8hrs | D22: None set ng/m3 | F22: 0.05 | G22: 0.0342
A23: Anthanthrene | C23: 6-8hrs | D23: None set µg/m3 | F23: 0.0015 | G23: 0.0015
A24: Benzo(a)anthracene | C24: 6-8hrs | D24: None set µg/m3 | F24: 0.0015 | G24: 0.0015
A25: Benzo(a)pyrene | C25: 6-8hrs | D25: None set µg/m3 | F25: 0.0015 | G25: 0.0015
A26: Benzo(b)fluoranthene | C26: 6-8hrs | D26: None set µg/m3 | F26: 0.0021 | G26: 0.0015
A27: Benzo(b)naptho(2,1-d) thiophene | C27: 6-8hrs | D27: None set µg/m3 | F27: 0.0015 | G27: 0.0015
A28: Benzo(c)phenanthrene | C28: 6-8hrs | D28: None set µg/m3 | F28: 0.0015 | G28: 0.0015
A29: Benzo(ghi)perylene | C29: 6-8hrs | D29: None set µg/m3 | F29: 0.003 | G29: 0.0015
A30: Benzo(k)fluoranthene | C30: 6-8hrs | D30: None set µg/m3 | F30: 0.0015 | G30: 0.0015
A31: Cholanthrene | C31: 6-8hrs | D31: None set µg/m3 | F31: 0.0015 | G31: 0.0015
A32: Chrysene | C32: 6-8hrs | D32: None set µg/m3 | F32: 0.0027 | G32: 0.0031
A33: Cyclopenta(cd)pyrene | C33: 6-8hrs | D33: None set µg/m3 | F33: 0.0048 | G33: 0.0015
A34: Dibenzo(ai)pyrene | C34: 6-8hrs | D34: None set µg/m3 | F34: 0.0015 | G34: 0.0015
A35: Dibenzo(ah)anthracene | C35: 6-8hrs | D35: None set µg/m3 | F35: 0.0015 | G35: 0.0015
A36: Fluoranthene | C36: 6-8hrs | D36: None set µg/m3 | F36: 0.00652 | G36: 0.0314
A37: Indeno(123-cd) pyrene | C37: 6-8hrs | D37: None set µg/m3 | F37: 0.0015 | G37: 0.0015
A38: Naphthalene | C38: 6-8hrs | D38: None set µg/m3 | F38: 0.123 | G38: 0.4
A39: Comments :

Sheet Air (CEMS)
A1: =+'Cover Page'!$B$29 -> Annual Performance Report 2024 | I1: =+'Cover Page'!$B$33 -> Dudley Energy from Waste
A3: Emissions to Air (continuously monitored)
N4: Notes:
A5: Summary of monitoring undertaken, standards used and compliance | N5: Template may require adjustment for any bespoke monitoring requirements of permit
N6: Please check that all default ELV values match those for your plant and edit if necessary!
N7: Report to 1 decimal place
A11: Results of emissions to air that are continuously monitored (maximum and average values for each line) - oxygen reference 11%
A12: Substance | B12: Reference Period | C12: Emission Limit Value | D12: A1 | F12: A2 | H12: A3 | J12: A4 | L12: A5
D13: Max. | E13: Avg. | F13: Max. | G13: Avg. | H13: Max. | I13: Avg. | J13: Max. | K13: Avg. | L13: Max. | M13: Avg.
A14: Oxides of nitrogen | B14: Daily mean | C14: 180 mg/m3 | D14: 190 | E14: 174.07 | F14: 188 | G14: 172.56
B15: ½ hourly mean | C15: 400 mg/m3 | D15: 1047 | E15: 174 | F15: 385 | G15: 172.5
A16: Particulates | B16: Daily mean | C16: 5 mg/m3 | D16: 2 | E16: 0.33 | F16: 5 | G16: 1.68
B17: ½ hourly mean | C17: 30 mg/m3 | D17: 42 | E17: 0.17 | F17: 103 | G17: 1.75
A18: Total Organic Carbon | B18: Daily mean | C18: 10 mg/m3 | D18: 5 | E18: 0.9 | F18: 2 | G18: 1.09
B19: ½ hourly mean | C19: 20 mg/m3 | D19: 25 | E19: 1 | F19: 48 | G19: 0.92
A20: Hydrogen chloride | B20: Daily mean | C20: 8 mg/m3 | D20: 7 | E20: 2.71 | F20: 19 | G20: 4.17
B21: ½ hourly mean | C21: 60 mg/m3 | D21: 166 | E21: 2.67 | F21: 331 | G21: 4.17
A22: Sulphur dioxide | B22: Daily mean | C22: 40 mg/m3 | D22: 34 | E22: 10.76 | F22: 24 | G22: 10.27
B23: ½ hourly mean | C23: 200 mg/m3 | D23: 222 | E23: 10.75 | F23: 294 | G23: 10.08
A24: Carbon monoxide | B24: Daily mean | C24: 50 mg/m3 | D24: 31 | E24: 5.02 | F24: 52 | G24: 8.71
B25: ½ hourly mean * | C25: 100 mg/m3 *
B26: 95%ile 10-min avg * | C26: 150 mg/m3 * | D26: 935 | E26: 5 | F26: 396 | G26: 8
A27: Ammonia | B27: Daily mean | C27: 15 mg/m3 | D27: 14 | E27: 6.33 | F27: 16 | G27: 4.75
A28: * = delete as appropriate, depending on whether your plant has half-hourly or 10-min CO ELVs
A29: Comments :

Sheet HCl
A1: =+'Cover Page'!$B$29 -> Annual Performance Report 2024 | E1: =+'Cover Page'!$B$33 -> Dudley Energy from Waste
A3: Monitoring of Hydrogen Chloride emissions | D3: Whole Installation | G3: See Notes in Cell Q3 | J3: =+A3 -> Monitoring of Hydrogen Chloride emissions | N3: Per Combustion Line | Q3: Notes:
Q4: User to add logic to complete Whole installation, Table A5:G18. From the data in Per Combustion Line, Table J6:O79, subject to No. of lines installed
A5: =+'Cover Page'!C39 -> 2024 | B5: 1/2 Hourly Reference Periods | E5: Daily Reference Periods
A6: mg/Nm3 | B6: 1/2 hourly HCl ELV | C6: Monthly mean of half-hourly averages | D6: Highest half- hourly average | E6: Daily HCl ELV | F6: Monthly mean of daily averages | G6: Highest daily average | J6: =+A5 -> 2024 | K6: mg/Nm3 | L6: Monthly mean of half-hourly averages | M6: Highest half- hourly average | N6: Monthly mean of daily averages | O6: Highest daily average
A7: Jan | B7: 60 | C7: 2.5 | D7: 27 | E7: 8 | F7: =AVERAGE(N7,N22) -> 2.75 | G7: =MAX(O7,O22) -> 5 | J7: A1 | K7: Jan | L7: 2 | M7: 27 | N7: 2.19 | O7: 4
A8: Feb | B8: 60 | C8: 4.5 | D8: 63 | E8: 8 | F8: =AVERAGE(N8,N23) -> 4.37 | G8: =MAX(O8,O23) -> 7 | K8: Feb | L8: 4 | M8: 50 | N8: 4.13 | O8: 5
A9: Mar | B9: 60 | C9: 3.5 | D9: 87 | E9: 8 | F9: 3.615 | G9: 6 | K9: Mar | L9: 3 | M9: 21 | N9: 3.07 | O9: 5 | Q9: Whole Installation table A5:G18:
A10: Apr | B10: 60 | C10: 4 | D10: 52 | E10: 8 | F10: 3.865 | G10: 6 | K10: Apr | L10: 4 | M10: 52 | N10: 3.81 | O10: 6 | Q10: Mean: for 1/2 hourly and daily periods calculate mean of values across all operational combustion lines for the month
A11: May | B11: 60 | C11: 4.5 | D11: 46 | E11: 8 | F11: 4.8 | G11: 7 | K11: May | L11: 4 | M11: 46 | N11: 3.97 | O11: 5
A12: Jun | B12: 60 | C12: 2.5 | D12: 166 | E12: 8 | F12: 3.06 | G12: 6 | K12: Jun | L12: 2 | M12: 166 | N12: 1.86 | O12: 6
A13: Jul | B13: 60 | C13: 3 | D13: 165 | E13: 8 | F13: 3.27 | G13: 7 | K13: Jul | L13: 2 | M13: 165 | N13: 2.17 | O13: 7 | Q13: Maximum: for 1/2 hourly and daily periods use the highest value across all operational combustion lines for the month
A14: Aug | B14: 60 | C14: 3.5 | D14: 331 | E14: 8 | F14: 3.63 | G14: 19 | K14: Aug | L14: 2 | M14: 79 | N14: 2.49 | O14: 7
A15: Sep | B15: 60 | C15: 3 | D15: 41 | E15: 8 | F15: 2.86 | G15: 5 | K15: Sep | L15: 2 | M15: 41 | N15: 1.92 | O15: 5
A16: Oct | B16: 60 | C16: 3.5 | D16: 46 | E16: 8 | F16: 3.555 | G16: 7 | K16: Oct | L16: 3 | M16: 29 | N16: 2.97 | O16: 5
A17: Nov | B17: 60 | C17: 2.5 | D17: 27 | E17: 8 | F17: 2.48 | G17: 4 | K17: Nov | L17: 2 | M17: 27 | N17: 1.71 | O17: 2
A18: Dec | B18: 60 | C18: 3 | D18: 30 | E18: 8 | F18: 3.03 | G18: 5 | K18: Dec | L18: 2 | M18: 10 | N18: 2.23 | O18: 4
K19: Annual | L19: =AVERAGE(L7:L18) -> 2.666666667 | M19: =MAX(M7:M18) -> 166 | N19: =AVERAGE(N7:N18) -> 2.71 | O19: =MAX(O7:O18) -> 7
J21: =+A5 -> 2024 | K21: mg/Nm3 | L21: Monthly mean of half-hourly averages | M21: Highest half- hourly average | N21: Monthly mean of daily averages | O21: Highest daily average
J22: A2 | K22: Jan | L22: 3 | M22: 11 | N22: 3.31 | O22: 5
K23: Feb | L23: 5 | M23: 63 | N23: 4.61 | O23: 7
K24: Mar | L24: 4 | M24: 87 | N24: 4.16 | O24: 6
K25: Apr | L25: 4 | M25: 24 | N25: 3.92 | O25: 6
K26: May | L26: 6 | M26: 31 | N26: 5.63 | O26: 7
K27: Jun | L27: 4 | M27: 50 | N27: 4.26 | O27: 6
K28: Jul | L28: 4 | M28: 87 | N28: 4.37 | O28: 6
K29: Aug | L29: 5 | M29: 331 | N29: 4.77 | O29: 19
K30: Sep | L30: 4 | M30: 29 | N30: 3.8 | O30: 5
K31: Oct | L31: 4 | M31: 46 | N31: 4.14 | O31: 7
K32: Nov | L32: 3 | M32: 19 | N32: 3.25 | O32: 4
K33: Dec | L33: 4 | M33: 30 | N33: 3.83 | O33: 5
K34: Annual | L34: =AVERAGE(L22:L33) -> 4.166666667 | M34: =MAX(M22:M33) -> 331 | N34: =AVERAGE(N22:N33) -> 4.170833333 | O34: =MAX(O22:O33) -> 19
J36: =+A5 -> 2024 | K36: mg/Nm3 | L36: Monthly mean of half-hourly averages | M36: Highest half- hourly average | N36: Monthly mean of daily averages | O36: Highest daily average
J37: A3 | K37: Jan
K38: Feb
K39: Mar
K40: Apr
K41: May
K42: Jun
K43: Jul
K44: Aug
K45: Sep
K46: Oct
K47: Nov
A48: Comments : | K48: Dec
K49: Annual | L49: =AVERAGE(L37:L48) ->  | M49: =MAX(M37:M48) -> 0 | N49: =AVERAGE(N37:N48) ->  | O49: =MAX(O37:O48) -> 0
J51: =+A5 -> 2024 | K51: mg/Nm3 | L51: Monthly mean of half-hourly averages | M51: Highest half- hourly average | N51: Monthly mean of daily averages | O51: Highest daily average
J52: A4 | K52: Jan
K53: Feb
K54: Mar
K55: Apr
K56: May
K57: Jun
K58: Jul
K59: Aug
K60: Sep
K61: Oct
K62: Nov
K63: Dec
K64: Annual | L64: =AVERAGE(L52:L63) ->  | M64: =MAX(M52:M63) -> 0 | N64: =AVERAGE(N52:N63) ->  | O64: =MAX(O52:O63) -> 0
J66: =+A5 -> 2024 | K66: mg/Nm3 | L66: Monthly mean of half-hourly averages | M66: Highest half- hourly average | N66: Monthly mean of daily averages | O66: Highest daily average
J67: A5 | K67: Jan
K68: Feb
K69: Mar
K70: Apr
K71: May
K72: Jun
K73: Jul
K74: Aug
K75: Sep
K76: Oct
K77: Nov
K78: Dec
K79: Annual | L79: =AVERAGE(L67:L78) ->  | M79: =MAX(M67:M78) -> 0 | N79: =AVERAGE(N67:N78) ->  | O79: =MAX(O67:O78) -> 0

Sheet SO2
A1: =+'Cover Page'!$B$29 -> Annual Performance Report 2024 | E1: =+'Cover Page'!$B$33 -> Dudley Energy from Waste
A3: Monitoring of Sulphur dioxide emissions | D3: Whole Installation | G3: See Notes in Cell Q3 | J3: =+A3 -> Monitoring of Sulphur dioxide emissions | N3: Per Combustion Line | Q3: Notes:
Q4: User to add logic to complete Whole installation, Table A5:G18. From the data in Per Combustion Line, Table J6:O79, subject to No. of lines installed
A5: =+'Cover Page'!C39 -> 2024 | B5: 1/2 Hourly Reference Periods | E5: Daily Reference Periods
A6: mg/Nm3 | B6: 1/2 hourly SO2 ELV | C6: Monthly mean of half-hourly averages | D6: Highest half- hourly average | E6: Daily SO2 ELV | F6: Monthly mean of daily averages | G6: Highest daily average | J6: =+A5 -> 2024 | K6: mg/Nm3 | L6: Monthly mean of half-hourly averages | M6: Highest half- hourly average | N6: Monthly mean of daily averages | O6: Highest daily average
A7: Jan | B7: 200 | C7: =AVERAGE(L7,L22) -> 10 | D7: =MAX(M7,M22) -> 52 | E7: 40 | F7: =AVERAGE(N7,N22) -> 10.185 | G7: =MAX(O7,O22) -> 26 | J7: A1 | K7: Jan | L7: 9 | M7: 52 | N7: 9.29 | O7: 26
A8: Feb | B8: 200 | C8: =AVERAGE(L8,L23) -> 14 | D8: =MAX(M8,M23) -> 142 | E8: 40 | F8: =AVERAGE(N8,N23) -> 14.39 | G8: =MAX(O8,O23) -> 25 | K8: Feb | L8: 11 | M8: 142 | N8: 11.38 | O8: 25
A9: Mar | B9: 200 | C9: 15.5 | D9: 250 | E9: 40 | F9: 15.825 | G9: 25 | K9: Mar | L9: 15 | M9: 145 | N9: 15.26 | O9: 25 | Q9: Whole Installation table A5:G18:
A10: Apr | B10: 200 | C10: 14.5 | D10: 154 | E10: 40 | F10: 14.595 | G10: 34 | K10: Apr | L10: 14 | M10: 154 | N10: 13.76 | O10: 34 | Q10: Mean: for 1/2 hourly and daily periods calculate mean of values across all operational combustion lines for the month
A11: May | B11: 200 | C11: 10.5 | D11: 96 | E11: 40 | F11: 10.74 | G11: 16 | K11: May | L11: 10 | M11: 96 | N11: 10.43 | O11: 16
A12: Jun | B12: 200 | C12: 10 | D12: 167 | E12: 40 | F12: 9.86 | G12: 16 | K12: Jun | L12: 12 | M12: 167 | N12: 11.78 | O12: 16
A13: Jul | B13: 200 | C13: 9.5 | D13: 226 | E13: 40 | F13: 9.71 | G13: 20 | K13: Jul | L13: 9 | M13: 222 | N13: 9.18 | O13: 20 | Q13: Maximum: for 1/2 hourly and daily periods use the highest value across all operational combustion lines for the month
A14: Aug | B14: 200 | C14: 10.5 | D14: 294 | E14: 40 | F14: 10.205 | G14: 23 | K14: Aug | L14: 12 | M14: 206 | N14: 11.54 | O14: 23
A15: Sep | B15: 200 | C15: 7.5 | D15: 159 | E15: 40 | F15: 7.505 | G15: 15 | K15: Sep | L15: 8 | M15: 159 | N15: 7.63 | O15: 15
A16: Oct | B16: 200 | C16: 11 | D16: 152 | E16: 40 | F16: 11.385 | G16: 23 | K16: Oct | L16: 12 | M16: 152 | N16: 12.44 | O16: 23
A17: Nov | B17: 200 | C17: 6.5 | D17: 85 | E17: 40 | F17: 6.59 | G17: 20 | K17: Nov | L17: 9 | M17: 85 | N17: 8.77 | O17: 20
A18: Dec | B18: 200 | C18: 5.5 | D18: 47 | E18: 40 | F18: 5.235 | G18: 15 | K18: Dec | L18: 8 | M18: 47 | N18: 7.71 | O18: 15
K19: Annual | L19: =AVERAGE(L7:L18) -> 10.75 | M19: =MAX(M7:M18) -> 222 | N19: =AVERAGE(N7:N18) -> 10.76416667 | O19: =MAX(O7:O18) -> 34
J21: =+A5 -> 2024 | K21: mg/Nm3 | L21: Monthly mean of half-hourly averages | M21: Highest half- hourly average | N21: Monthly mean of daily averages | O21: Highest daily average
J22: A2 | K22: Jan | L22: 11 | M22: 50 | N22: 11.08 | O22: 18
K23: Feb | L23: 17 | M23: 107 | N23: 17.4 | O23: 23
K24: Mar | L24: 16 | M24: 250 | N24: 16.39 | O24: 22
K25: Apr | L25: 15 | M25: 121 | N25: 15.43 | O25: 24
K26: May | L26: 11 | M26: 68 | N26: 11.05 | O26: 16
K27: Jun | L27: 8 | M27: 100 | N27: 7.94 | O27: 12
K28: Jul | L28: 10 | M28: 226 | N28: 10.24 | O28: 18
K29: Aug | L29: 9 | M29: 294 | N29: 8.87 | O29: 20
K30: Sep | L30: 7 | M30: 70 | N30: 7.38 | O30: 11
K31: Oct | L31: 10 | M31: 131 | N31: 10.33 | O31: 21
K32: Nov | L32: 4 | M32: 60 | N32: 4.41 | O32: 9
K33: Dec | L33: 3 | M33: 35 | N33: 2.76 | O33: 8
K34: Annual | L34: =AVERAGE(L22:L33) -> 10.08333333 | M34: =MAX(M22:M33) -> 294 | N34: =AVERAGE(N22:N33) -> 10.27333333 | O34: =MAX(O22:O33) -> 24
J36: =+A5 -> 2024 | K36: mg/Nm3 | L36: Monthly mean of half-hourly averages | M36: Highest half- hourly average | N36: Monthly mean of daily averages | O36: Highest daily average
J37: A3 | K37: Jan
K38: Feb
K39: Mar
K40: Apr
K41: May
K42: Jun
K43: Jul
K44: Aug
K45: Sep
K46: Oct
K47: Nov
A48: Comments : | K48: Dec
K49: Annual | L49: =AVERAGE(L37:L48) ->  | M49: =MAX(M37:M48) -> 0 | N49: =AVERAGE(N37:N48) ->  | O49: =MAX(O37:O48) -> 0
J51: =+A5 -> 2024 | K51: mg/Nm3 | L51: Monthly mean of half-hourly averages | M51: Highest half- hourly average | N51: Monthly mean of daily averages | O51: Highest daily average
J52: A4 | K52: Jan
K53: Feb
K54: Mar
K55: Apr
K56: May
K57: Jun
K58: Jul
K59: Aug
K60: Sep
K61: Oct
K62: Nov
K63: Dec
K64: Annual | L64: =AVERAGE(L52:L63) ->  | M64: =MAX(M52:M63) -> 0 | N64: =AVERAGE(N52:N63) ->  | O64: =MAX(O52:O63) -> 0
J66: =+A5 -> 2024 | K66: mg/Nm3 | L66: Monthly mean of half-hourly averages | M66: Highest half- hourly average | N66: Monthly mean of daily averages | O66: Highest daily average
J67: A5 | K67: Jan
K68: Feb
K69: Mar
K70: Apr
K71: May
K72: Jun
K73: Jul
K74: Aug
K75: Sep
K76: Oct
K77: Nov
K78: Dec
K79: Annual | L79: =AVERAGE(L67:L78) ->  | M79: =MAX(M67:M78) -> 0 | N79: =AVERAGE(N67:N78) ->  | O79: =MAX(O67:O78) -> 0

Sheet NOx
A1: =+'Cover Page'!$B$29 -> Annual Performance Report 2024 | E1: =+'Cover Page'!$B$33 -> Dudley Energy from Waste
A3: Monitoring of Oxides of Nitrogen emissions | D3: Whole Installation | G3: See Notes in Cell Q3 | J3: =+A3 -> Monitoring of Oxides of Nitrogen emissions | N3: Per Combustion Line | Q3: Notes:
Q4: User to add logic to complete Whole installation, Table A5:G18. From the data in Per Combustion Line, Table J6:O79, subject to No. of lines installed
A5: =+'Cover Page'!C39 -> 2024 | B5: 1/2 Hourly Reference Periods | E5: Daily Reference Periods
A6: mg/Nm3 | B6: 1/2 hourly NOx ELV | C6: Monthly mean of half-hourly averages | D6: Highest half- hourly average | E6: Daily NOx ELV | F6: Monthly mean of daily averages | G6: Highest daily average | J6: =+A5 -> 2024 | K6: mg/Nm3 | L6: Monthly mean of half-hourly averages | M6: Highest half- hourly average | N6: Monthly mean of daily averages | O6: Highest daily average
A7: Jan | B7: 400 | C7: =AVERAGE(L7,L22) -> 176.5 | D7: =MAX(M7,M22) -> 354 | E7: 180 | F7: =AVERAGE(N7,N22) -> 176.39 | G7: =MAX(O7,O22) -> 182 | J7: A1 | K7: Jan | L7: 177 | M7: 354 | N7: 177.1 | O7: 182
A8: Feb | B8: 400 | C8: =AVERAGE(L8,L23) -> 176 | D8: =MAX(M8,M23) -> 342 | E8: 180 | F8: =AVERAGE(N8,N23) -> 175.945 | G8: =MAX(O8,O23) -> 179 | K8: Feb | L8: 176 | M8: 334 | N8: 176.01 | O8: 178
A9: Mar | B9: 400 | C9: 175.5 | D9: 329 | E9: 180 | F9: 175.58 | G9: 179 | K9: Mar | L9: 176 | M9: 329 | N9: 175.77 | O9: 179 | Q9: Whole Installation table A5:G18:
A10: Apr | B10: 400 | C10: 175.5 | D10: 385 | E10: 180 | F10: 175.705 | G10: 188 | K10: Apr | L10: 175 | M10: 275 | N10: 175.23 | O10: 180 | Q10: Mean: for 1/2 hourly and daily periods calculate mean of values across all operational combustion lines for the month
A11: May | B11: 400 | C11: 169.5 | D11: 247 | E11: 180 | F11: 169.405 | G11: 176 | K11: May | L11: 171 | M11: 247 | N11: 171.02 | O11: 176
A12: Jun | B12: 400 | C12: 167.5 | D12: 249 | E12: 180 | F12: 167.74 | G12: 177 | K12: Jun | L12: 170 | M12: 227 | N12: 170.5 | O12: 172
A13: Jul | B13: 400 | C13: 173.5 | D13: 1047 | E13: 180 | F13: 173.45 | G13: 190 | K13: Jul | L13: 174 | M13: 1047 | N13: 174.02 | O13: 190 | Q13: Maximum: for 1/2 hourly and daily periods use the highest value across all operational combustion lines for the month
A14: Aug | B14: 400 | C14: 174 | D14: 316 | E14: 180 | F14: 174.005 | G14: 177 | K14: Aug | L14: 174 | M14: 316 | N14: 173.8 | O14: 176
A15: Sep | B15: 400 | C15: 173.5 | D15: 317 | E15: 180 | F15: 173.885 | G15: 179 | K15: Sep | L15: 174 | M15: 249 | N15: 174.3 | O15: 179
A16: Oct | B16: 400 | C16: 175 | D16: 326 | E16: 180 | F16: 174.875 | G16: 181 | K16: Oct | L16: 176 | M16: 278 | N16: 175.76 | O16: 181
A17: Nov | B17: 400 | C17: 169.5 | D17: 348 | E17: 180 | F17: 169.685 | G17: 184 | K17: Nov | L17: 172 | M17: 251 | N17: 172.21 | O17: 184
A18: Dec | B18: 400 | C18: 173 | D18: 293 | E18: 180 | F18: 173.14 | G18: 177 | K18: Dec | L18: 173 | M18: 275 | N18: 173.14 | O18: 175
K19: Annual | L19: =AVERAGE(L7:L18) -> 174 | M19: =MAX(M7:M18) -> 1047 | N19: =AVERAGE(N7:N18) -> 174.0716667 | O19: =MAX(O7:O18) -> 190
J21: =+A5 -> 2024 | K21: mg/Nm3 | L21: Monthly mean of half-hourly averages | M21: Highest half- hourly average | N21: Monthly mean of daily averages | O21: Highest daily average
J22: A2 | K22: Jan | L22: 176 | M22: 336 | N22: 175.68 | O22: 178
K23: Feb | L23: 176 | M23: 342 | N23: 175.88 | O23: 179
K24: Mar | L24: 175 | M24: 285 | N24: 175.39 | O24: 178
K25: Apr | L25: 176 | M25: 385 | N25: 176.18 | O25: 188
K26: May | L26: 168 | M26: 199 | N26: 167.79 | O26: 171
K27: Jun | L27: 165 | M27: 249 | N27: 164.98 | O27: 177
K28: Jul | L28: 173 | M28: 341 | N28: 172.88 | O28: 179
K29: Aug | L29: 174 | M29: 277 | N29: 174.21 | O29: 177
K30: Sep | L30: 173 | M30: 317 | N30: 173.47 | O30: 178
K31: Oct | L31: 174 | M31: 326 | N31: 173.99 | O31: 178
K32: Nov | L32: 167 | M32: 348 | N32: 167.16 | O32: 174
K33: Dec | L33: 173 | M33: 293 | N33: 173.14 | O33: 177
K34: Annual | L34: =AVERAGE(L22:L33) -> 172.5 | M34: =MAX(M22:M33) -> 385 | N34: =AVERAGE(N22:N33) -> 172.5625 | O34: =MAX(O22:O33) -> 188
J36: =+A5 -> 2024 | K36: mg/Nm3 | L36: Monthly mean of half-hourly averages | M36: Highest half- hourly average | N36: Monthly mean of daily averages | O36: Highest daily average
J37: A3 | K37: Jan
K38: Feb
K39: Mar
K40: Apr
K41: May
K42: Jun
K43: Jul
K44: Aug
K45: Sep
K46: Oct
K47: Nov
A48: Comments : | K48: Dec
K49: Annual | L49: =AVERAGE(L37:L48) ->  | M49: =MAX(M37:M48) -> 0 | N49: =AVERAGE(N37:N48) ->  | O49: =MAX(O37:O48) -> 0
J51: =+A5 -> 2024 | K51: mg/Nm3 | L51: Monthly mean of half-hourly averages | M51: Highest half- hourly average | N51: Monthly mean of daily averages | O51: Highest daily average
J52: A4 | K52: Jan
K53: Feb
K54: Mar
K55: Apr
K56: May
K57: Jun
K58: Jul
K59: Aug
K60: Sep
K61: Oct
K62: Nov
K63: Dec
K64: Annual | L64: =AVERAGE(L52:L63) ->  | M64: =MAX(M52:M63) -> 0 | N64: =AVERAGE(N52:N63) ->  | O64: =MAX(O52:O63) -> 0
J66: =+A5 -> 2024 | K66: mg/Nm3 | L66: Monthly mean of half-hourly averages | M66: Highest half- hourly average | N66: Monthly mean of daily averages | O66: Highest daily average
J67: A5 | K67: Jan
K68: Feb
K69: Mar
K70: Apr
K71: May
K72: Jun
K73: Jul
K74: Aug
K75: Sep
K76: Oct
K77: Nov
K78: Dec
K79: Annual | L79: =AVERAGE(L67:L78) ->  | M79: =MAX(M67:M78) -> 0 | N79: =AVERAGE(N67:N78) ->  | O79: =MAX(O67:O78) -> 0

Sheet TOC
A1: =+'Cover Page'!$B$29 -> Annual Performance Report 2024 | E1: =+'Cover Page'!$B$33 -> Dudley Energy from Waste
A3: Monitoring of Total organic carbon emissions | D3: Whole Installation | G3: See Notes in Cell Q3 | J3: =+A3 -> Monitoring of Total organic carbon emissions | N3: Per Combustion Line | Q3: Notes:
Q4: User to add logic to complete Whole installation, Table A5:G18. From the data in Per Combustion Line, Table J6:O79, subject to No. of lines installed
A5: =+'Cover Page'!C39 -> 2024 | B5: 1/2 Hourly Reference Periods | E5: Daily Reference Periods
A6: mg/Nm3 | B6: 1/2 hourly TOC ELV | C6: Monthly mean of half-hourly averages | D6: Highest half- hourly average | E6: Daily TOC ELV | F6: Monthly mean of daily averages | G6: Highest daily average | J6: =+A5 -> 2024 | K6: mg/Nm3 | L6: Monthly mean of half-hourly averages | M6: Highest half- hourly average | N6: Monthly mean of daily averages | O6: Highest daily average
A7: Jan | B7: 20 | C7: =AVERAGE(L7,L22) -> 1 | D7: =MAX(M7,M22) -> 5 | E7: 10 | F7: =AVERAGE(N7,N22) -> 0.75 | G7: =MAX(O7,O22) -> 1 | J7: A1 | K7: Jan | L7: 1 | M7: 5 | N7: 0.6 | O7: 1
A8: Feb | B8: 20 | C8: =AVERAGE(L8,L23) -> 1 | D8: =MAX(M8,M23) -> 7 | E8: 10 | F8: =AVERAGE(N8,N23) -> 0.9 | G8: =MAX(O8,O23) -> 1 | K8: Feb | L8: 1 | M8: 7 | N8: 0.84 | O8: 1
A9: Mar | B9: 20 | C9: 1 | D9: 17 | E9: 10 | F9: 0.96 | G9: 2 | K9: Mar | L9: 1 | M9: 17 | N9: 0.98 | O9: 2 | Q9: Whole Installation table A5:G18:
A10: Apr | B10: 20 | C10: 1 | D10: 8 | E10: 10 | F10: 0.96 | G10: 1 | K10: Apr | L10: 1 | M10: 8 | N10: 0.91 | O10: 1 | Q10: Mean: for 1/2 hourly and daily periods calculate mean of values across all operational combustion lines for the month
A11: May | B11: 20 | C11: 1 | D11: 11 | E11: 10 | F11: 1.16 | G11: 2 | K11: May | L11: 1 | M11: 6 | N11: 0.95 | O11: 1
A12: Jun | B12: 20 | C12: 1 | D12: 7 | E12: 10 | F12: 0.915 | G12: 2 | K12: Jun | L12: 1 | M12: 6 | N12: 0.92 | O12: 2
A13: Jul | B13: 20 | C13: 1 | D13: 10 | E13: 10 | F13: 0.99 | G13: 1 | K13: Jul | L13: 1 | M13: 10 | N13: 0.93 | O13: 1 | Q13: Maximum: for 1/2 hourly and daily periods use the highest value across all operational combustion lines for the month
A14: Aug | B14: 20 | C14: 1 | D14: 14 | E14: 10 | F14: 0.98 | G14: 1 | K14: Aug | L14: 1 | M14: 9 | N14: 0.86 | O14: 1
A15: Sep | B15: 20 | C15: 1 | D15: 48 | E15: 10 | F15: 1.205 | G15: 2 | K15: Sep | L15: 1 | M15: 25 | N15: 0.96 | O15: 2
A16: Oct | B16: 20 | C16: 0.5 | D16: 11 | E16: 10 | F16: 1.055 | G16: 3 | K16: Oct | L16: 1 | M16: 11 | N16: 0.82 | O16: 3
A17: Nov | B17: 20 | C17: 1 | D17: 14 | E17: 10 | F17: 1.055 | G17: 5 | K17: Nov | L17: 1 | M17: 11 | N17: 1.03 | O17: 5
A18: Dec | B18: 20 | C18: 1 | D18: 7 | E18: 10 | F18: 1 | G18: 1 | K18: Dec | L18: 1 | M18: 7 | N18: 0.99 | O18: 1
K19: Annual | L19: =AVERAGE(L7:L18) -> 1 | M19: =MAX(M7:M18) -> 25 | N19: =AVERAGE(N7:N18) -> 0.8991666667 | O19: =MAX(O7:O18) -> 5
J21: =+A5 -> 2024 | K21: mg/Nm3 | L21: Monthly mean of half-hourly averages | M21: Highest half- hourly average | N21: Monthly mean of daily averages | O21: Highest daily average
J22: A2 | K22: Jan | L22: 1 | M22: 4 | N22: 0.9 | O22: 1
K23: Feb | L23: 1 | M23: 2 | N23: 0.96 | O23: 1
K24: Mar | L24: 1 | M24: 2 | N24: 0.94 | O24: 1
K25: Apr | L25: 1 | M25: 3 | N25: 1.01 | O25: 1
K26: May | L26: 1 | M26: 11 | N26: 1.37 | O26: 2
K27: Jun | L27: 1 | M27: 7 | N27: 0.91 | O27: 1
K28: Jul | L28: 1 | M28: 7 | N28: 1.05 | O28: 1
K29: Aug | L29: 1 | M29: 14 | N29: 1.1 | O29: 1
K30: Sep | L30: 1 | M30: 48 | N30: 1.45 | O30: 2
K31: Oct | L31: 0 | M31: 7 | N31: 1.29 | O31: 2
K32: Nov | L32: 1 | M32: 14 | N32: 1.08 | O32: 2
K33: Dec | L33: 1 | M33: 5 | N33: 1.01 | O33: 1
K34: Annual | L34: =AVERAGE(L22:L33) -> 0.9166666667 | M34: =MAX(M22:M33) -> 48 | N34: =AVERAGE(N22:N33) -> 1.089166667 | O34: =MAX(O22:O33) -> 2
J36: =+A5 -> 2024 | K36: mg/Nm3 | L36: Monthly mean of half-hourly averages | M36: Highest half- hourly average | N36: Monthly mean of daily averages | O36: Highest daily average
J37: A3 | K37: Jan
K38: Feb
K39: Mar
K40: Apr
K41: May
K42: Jun
K43: Jul
K44: Aug
K45: Sep
K46: Oct
K47: Nov
A48: Comments : | K48: Dec
K49: Annual | L49: =AVERAGE(L37:L48) ->  | M49: =MAX(M37:M48) -> 0 | N49: =AVERAGE(N37:N48) ->  | O49: =MAX(O37:O48) -> 0
J51: =+A5 -> 2024 | K51: mg/Nm3 | L51: Monthly mean of half-hourly averages | M51: Highest half- hourly average | N51: Monthly mean of daily averages | O51: Highest daily average
J52: A4 | K52: Jan
K53: Feb
K54: Mar
K55: Apr
K56: May
K57: Jun
K58: Jul
K59: Aug
K60: Sep
K61: Oct
K62: Nov
K63: Dec
K64: Annual | L64: =AVERAGE(L52:L63) ->  | M64: =MAX(M52:M63) -> 0 | N64: =AVERAGE(N52:N63) ->  | O64: =MAX(O52:O63) -> 0
J66: =+A5 -> 2024 | K66: mg/Nm3 | L66: Monthly mean of half-hourly averages | M66: Highest half- hourly average | N66: Monthly mean of daily averages | O66: Highest daily average
J67: A5 | K67: Jan
K68: Feb
K69: Mar
K70: Apr
K71: May
K72: Jun
K73: Jul
K74: Aug
K75: Sep
K76: Oct
K77: Nov
K78: Dec
K79: Annual | L79: =AVERAGE(L67:L78) ->  | M79: =MAX(M67:M78) -> 0 | N79: =AVERAGE(N67:N78) ->  | O79: =MAX(O67:O78) -> 0

Sheet Particulates
A1: =+'Cover Page'!$B$29 -> Annual Performance Report 2024 | E1: =+'Cover Page'!$B$33 -> Dudley Energy from Waste
A3: Monitoring of Particulate matter emissions | D3: Whole Installation | G3: See Notes in Cell Q3 | J3: =+A3 -> Monitoring of Particulate matter emissions | N3: Per Combustion Line | Q3: Notes:
A5: =+'Cover Page'!C39 -> 2024 | B5: 1/2 Hourly Reference Periods | E5: Daily Reference Periods | Q5: User to add logic to complete Whole installation, Table A5:G18. From the data in Per Combustion Line, Table J6:O79, subject to No. of lines installed
A6: mg/Nm3 | B6: 1/2 hourly PM ELV | C6: Monthly mean of half-hourly averages | D6: Highest half- hourly average | E6: Daily PM ELV | F6: Monthly mean of daily averages | G6: Highest daily average | J6: =+A5 -> 2024 | K6: mg/Nm3 | L6: Monthly mean of half-hourly averages | M6: Highest half- hourly average | N6: Monthly mean of daily averages | O6: Highest daily average
A7: Jan | B7: 30 | C7: =AVERAGE(L7,L22) -> 0.5 | D7: =MAX(M7,M22) -> 3 | E7: 5 | F7: =AVERAGE(N7,N22) -> 0.605 | G7: =MAX(O7,O22) -> 1 | J7: A1 | K7: Jan | L7: 0 | M7: 3 | N7: 0.38 | O7: 1
A8: Feb | B8: 30 | C8: =AVERAGE(L8,L23) -> 0.5 | D8: =MAX(M8,M23) -> 2 | E8: 5 | F8: =AVERAGE(N8,N23) -> 0.41 | G8: =MAX(O8,O23) -> 1 | K8: Feb | L8: 0 | M8: 1 | N8: 0.23 | O8: 0
A9: Mar | B9: 30 | C9: 0.5 | D9: 3 | E9: 5 | F9: 0.485 | G9: 1 | K9: Mar | L9: 0 | M9: 1 | N9: 0.26 | O9: 0
A10: Apr | B10: 30 | C10: 0.5 | D10: 4 | E10: 5 | F10: 0.62 | G10: 1 | K10: Apr | L10: 0 | M10: 4 | N10: 0.3 | O10: 1 | Q10: Whole Installation table A5:G18:
A11: May | B11: 30 | C11: 0.5 | D11: 24 | E11: 5 | F11: 0.805 | G11: 2 | K11: May | L11: 0 | M11: 0 | N11: 0.22 | O11: 0 | Q11: Mean: for 1/2 hourly and daily periods calculate mean of values across all operational combustion lines for the month
A12: Jun | B12: 30 | C12: 1.5 | D12: 9 | E12: 5 | F12: 1.315 | G12: 3 | K12: Jun | L12: 1 | M12: 8 | N12: 0.62 | O12: 1
A13: Jul | B13: 30 | C13: 2 | D13: 103 | E13: 5 | F13: 1.525 | G13: 5 | K13: Jul | L13: 1 | M13: 42 | N13: 0.54 | O13: 2
A14: Aug | B14: 30 | C14: 1.5 | D14: 5 | E14: 5 | F14: 1.55 | G14: 4 | K14: Aug | L14: 0 | M14: 2 | N14: 0.47 | O14: 1 | Q14: Maximum: for 1/2 hourly and daily periods use the highest value across all operational combustion lines for the month
A15: Sep | B15: 30 | C15: 1 | D15: 15 | E15: 5 | F15: 1.09 | G15: 5 | K15: Sep | L15: 0 | M15: 15 | N15: 0.28 | O15: 1
A16: Oct | B16: 30 | C16: 0.5 | D16: 33 | E16: 5 | F16: 0.835 | G16: 2 | K16: Oct | L16: 0 | M16: 33 | N16: 0.29 | O16: 1
A17: Nov | B17: 30 | C17: 1 | D17: 4 | E17: 5 | F17: 1.155 | G17: 3 | K17: Nov | L17: 0 | M17: 1 | N17: 0.22 | O17: 0
A18: Dec | B18: 30 | C18: 1.5 | D18: 9 | E18: 5 | F18: 1.65 | G18: 5 | K18: Dec | L18: 0 | M18: 1 | N18: 0.16 | O18: 0
K19: Annual | L19: =AVERAGE(L7:L18) -> 0.1666666667 | M19: =MAX(M7:M18) -> 42 | N19: =AVERAGE(N7:N18) -> 0.3308333333 | O19: =MAX(O7:O18) -> 2
J21: =+A5 -> 2024 | K21: mg/Nm3 | L21: Monthly mean of half-hourly averages | M21: Highest half- hourly average | N21: Monthly mean of daily averages | O21: Highest daily average
J22: A2 | K22: Jan | L22: 1 | M22: 3 | N22: 0.83 | O22: 1
K23: Feb | L23: 1 | M23: 2 | N23: 0.59 | O23: 1
K24: Mar | L24: 1 | M24: 3 | N24: 0.71 | O24: 1
K25: Apr | L25: 1 | M25: 4 | N25: 0.94 | O25: 1
K26: May | L26: 1 | M26: 24 | N26: 1.39 | O26: 2
K27: Jun | L27: 2 | M27: 9 | N27: 2.01 | O27: 3
K28: Jul | L28: 3 | M28: 103 | N28: 2.51 | O28: 5
K29: Aug | L29: 3 | M29: 5 | N29: 2.63 | O29: 4
K30: Sep | L30: 2 | M30: 9 | N30: 1.9 | O30: 5
K31: Oct | L31: 1 | M31: 3 | N31: 1.38 | O31: 2
K32: Nov | L32: 2 | M32: 4 | N32: 2.09 | O32: 3
K33: Dec | L33: 3 | M33: 9 | N33: 3.14 | O33: 5
K34: Annual | L34: =AVERAGE(L22:L33) -> 1.75 | M34: =MAX(M22:M33) -> 103 | N34: =AVERAGE(N22:N33) -> 1.676666667 | O34: =MAX(O22:O33) -> 5
J36: =+A5 -> 2024 | K36: mg/Nm3 | L36: Monthly mean of half-hourly averages | M36: Highest half- hourly average | N36: Monthly mean of daily averages | O36: Highest daily average
J37: A3 | K37: Jan
K38: Feb
K39: Mar
K40: Apr
K41: May
K42: Jun
K43: Jul
K44: Aug
K45: Sep
K46: Oct
K47: Nov
A48: Comments : | K48: Dec
K49: Annual | L49: =AVERAGE(L37:L48) ->  | M49: =MAX(M37:M48) -> 0 | N49: =AVERAGE(N37:N48) ->  | O49: =MAX(O37:O48) -> 0
J51: =+A5 -> 2024 | K51: mg/Nm3 | L51: Monthly mean of half-hourly averages | M51: Highest half- hourly average | N51: Monthly mean of daily averages | O51: Highest daily average
J52: A4 | K52: Jan
K53: Feb
K54: Mar
K55: Apr
K56: May
K57: Jun
K58: Jul
K59: Aug
K60: Sep
K61: Oct
K62: Nov
K63: Dec
K64: Annual | L64: =AVERAGE(L52:L63) ->  | M64: =MAX(M52:M63) -> 0 | N64: =AVERAGE(N52:N63) ->  | O64: =MAX(O52:O63) -> 0
J66: =+A5 -> 2024 | K66: mg/Nm3 | L66: Monthly mean of half-hourly averages | M66: Highest half- hourly average | N66: Monthly mean of daily averages | O66: Highest daily average
J67: A5 | K67: Jan
K68: Feb
K69: Mar
K70: Apr
K71: May
K72: Jun
K73: Jul
K74: Aug
K75: Sep
K76: Oct
K77: Nov
K78: Dec
K79: Annual | L79: =AVERAGE(L67:L78) ->  | M79: =MAX(M67:M78) -> 0 | N79: =AVERAGE(N67:N78) ->  | O79: =MAX(O67:O78) -> 0

Sheet CO 0.5 hourly
A1: =+'Cover Page'!$B$29 -> Annual Performance Report 2024 | E1: =+'Cover Page'!$B$33 -> Dudley Energy from Waste
A3: Monitoring of Carbon Monoxide (half hourly) | D3: Whole Installation | G3: See Notes in Cell Q3 | J3: =+A3 -> Monitoring of Carbon Monoxide (half hourly) | N3: Per Combustion Line | Q3: Notes:
A5: Please complete this tab for your plant if you have 1/2 hourly CO ELVs; otherwise, leave it blank and complete the CO 95% 10 min tab
Q7: User to add logic to complete Whole installation, Table A5:G18. From the data in Per Combustion Line, Table J6:O79, subject to No. of lines installed
A8: =+'Cover Page'!C39 -> 2024 | B8: 1/2 Hourly Reference Periods | E8: Daily Reference Periods
A9: mg/Nm3 | B9: 1/2 hourly CO ELV | C9: Monthly mean of half-hourly averages | D9: Highest half- hourly average | E9: Daily CO ELV | F9: Monthly mean of daily averages | G9: Highest daily average | J9: =+A8 -> 2024 | K9: mg/Nm3 | L9: Monthly mean of half-hourly averages | M9: Highest half- hourly average | N9: Monthly mean of daily averages | O9: Highest daily average
A10: Jan | B10: 100 | E10: 50 | J10: A1 | K10: Jan
A11: Feb | B11: =+B10 -> 100 | E11: =+E10 -> 50 | K11: Feb
A12: Mar | B12: =+B11 -> 100 | E12: =+E11 -> 50 | K12: Mar | Q12: Whole Installation table A5:G18:
A13: Apr | B13: 100 | E13: 50 | K13: Apr | Q13: Mean: for 1/2 hourly and daily periods calculate mean of values across all operational combustion lines for the month
A14: May | B14: 100 | E14: 50 | K14: May
A15: Jun | B15: 100 | E15: 50 | K15: Jun
A16: Jul | B16: 100 | E16: 50 | K16: Jul | Q16: Maximum: for 1/2 hourly and daily periods use the highest value across all operational combustion lines for the month
A17: Aug | B17: 100 | E17: 50 | K17: Aug
A18: Sep | B18: 100 | E18: 50 | K18: Sep
A19: Oct | B19: 100 | E19: 50 | K19: Oct
A20: Nov | B20: 100 | E20: 50 | K20: Nov
A21: Dec | B21: 100 | E21: 50 | K21: Dec
K22: Annual | L22: =AVERAGE(L10:L21) ->  | M22: =MAX(M10:M21) -> 0 | N22: =AVERAGE(N10:N21) ->  | O22: =MAX(O25:O36) -> 0
J24: =+A8 -> 2024 | K24: mg/Nm3 | L24: Monthly mean of half-hourly averages | M24: Highest half- hourly average | N24: Monthly mean of daily averages | O24: Highest daily average
J25: A2 | K25: Jan
K26: Feb
K27: Mar
K28: Apr
K29: May
K30: Jun
K31: Jul
K32: Aug
K33: Sep
K34: Oct
K35: Nov
K36: Dec
K37: Annual | L37: =AVERAGE(L25:L36) ->  | M37: =MAX(M25:M36) -> 0 | N37: =AVERAGE(N25:N36) ->  | O37: =MAX(#REF!) -> 
J39: =+A8 -> 2024 | K39: mg/Nm3 | L39: Monthly mean of half-hourly averages | M39: Highest half- hourly average | N39: Monthly mean of daily averages | O39: Highest daily average
J40: A3 | K40: Jan
K41: Feb
K42: Mar
K43: Apr
K44: May
K45: Jun
K46: Jul
K47: Aug
K48: Sep
K49: Oct
K50: Nov
A51: Comments : | K51: Dec
K52: Annual | L52: =AVERAGE(L40:L51) ->  | M52: =MAX(M40:M51) -> 0 | N52: =AVERAGE(N40:N51) ->  | O52: =MAX(O40:O51) -> 0
J54: =+A8 -> 2024 | K54: mg/Nm3 | L54: Monthly mean of half-hourly averages | M54: Highest half- hourly average | N54: Monthly mean of daily averages | O54: Highest daily average
J55: A4 | K55: Jan
K56: Feb
K57: Mar
K58: Apr
K59: May
K60: Jun
K61: Jul
K62: Aug
K63: Sep
K64: Oct
K65: Nov
K66: Dec
K67: Annual | L67: =AVERAGE(L55:L66) ->  | M67: =MAX(M55:M66) -> 0 | N67: =AVERAGE(N55:N66) ->  | O67: =MAX(O55:O66) -> 0
J69: =+A8 -> 2024 | K69: mg/Nm3 | L69: Monthly mean of half-hourly averages | M69: Highest half- hourly average | N69: Monthly mean of daily averages | O69: Highest daily average
J70: A5 | K70: Jan
K71: Feb
K72: Mar
K73: Apr
K74: May
K75: Jun
K76: Jul
K77: Aug
K78: Sep
K79: Oct
K80: Nov
K81: Dec
K82: Annual | L82: =AVERAGE(L70:L81) ->  | M82: =MAX(M70:M81) -> 0 | N82: =AVERAGE(N70:N81) ->  | O82: =MAX(O70:O81) -> 0

Sheet CO 95% 10 min
A1: =+'Cover Page'!$B$29 -> Annual Performance Report 2024 | E1: =+'Cover Page'!$B$33 -> Dudley Energy from Waste
A3: Monitoring of Carbon Monoxide (10-minute avg) | E3: Whole Installation | H3: See Notes in Cell S3 | J3: =+A3 -> Monitoring of Carbon Monoxide (10-minute avg) | O3: Per Combustion Line | Q3: Notes: | S3: Notes:
A5: Please complete this tab for your plant if you have 10-minute average CO ELVs; otherwise, leave it blank and complete the CO 0.5 hourly tab
S7: User to add logic to complete Whole installation, Table A5:H18. From the data in Per Combustion Line, Table K6:Q79, subject to No. of lines installed
A8: =+'Cover Page'!C39 -> 2024 | B8: 10-minute Reference Periods | F8: Daily Reference Periods
A9: mg/Nm3 | B9: 95%ile 10-min avg CO ELV | C9: Highest daily 95%ile 10-min average | D9: Monthly mean of 10-min averages | E9: Highest 10-min average | F9: Daily CO ELV | G9: Monthly mean of daily averages | H9: Highest daily average | K9: =+A8 -> 2024 | L9: mg/Nm3 | M9: Highest daily 95%ile 10-min average | N9: Monthly mean of 10-min averages | O9: Highest 10-min average | P9: Monthly mean of daily averages | Q9: Highest daily average
A10: Jan | B10: 150 | D10: =AVERAGE(M10,M25) -> 11 | E10: =MAX(N10,N25) -> 268 | F10: 50 | G10: =AVERAGE(P10,O25) -> 6.04 | H10: =MAX(Q10,P25) -> 16.54 | K10: A1 | L10: Jan | M10: 6 | N10: 268 | P10: 6.04 | Q10: 9
A11: Feb | B11: =+B10 -> 150 | D11: =AVERAGE(M11,M26) -> 3 | E11: =MAX(N11,N26) -> 56 | F11: =+F10 -> 50 | G11: =AVERAGE(P11,O26) -> 4.12 | H11: =MAX(Q11,P26) -> 10.64 | L11: Feb | M11: 4 | N11: 14 | P11: 4.12 | Q11: 8
A12: Mar | B12: =+B11 -> 150 | D12: 9 | E12: 935 | F12: =+F11 -> 50 | G12: 8.52 | H12: 10.28 | L12: Mar | M12: 8 | N12: 935 | P12: 8.52 | Q12: 9 | S12: Whole Installation table A5:H18:
A13: Apr | B13: 150 | D13: 7.5 | E13: 39 | F13: 50 | G13: 5.03 | H13: 11 | L13: Apr | M13: 5 | N13: 25 | P13: 5.03 | Q13: 11 | S13: Mean: for 10-min and daily periods use average of all operational combustion lines.
A14: May | B14: 150 | D14: 8 | E14: 111 | F14: 50 | G14: 4.87 | H14: 10.85 | L14: May | M14: 5 | N14: 22 | P14: 4.87 | Q14: 10
A15: Jun | B15: 150 | D15: 7.5 | E15: 169 | F15: 50 | G15: 3.73 | H15: 9.86 | L15: Jun | M15: 4 | N15: 26 | P15: 3.73 | Q15: 7
A16: Jul | B16: 150 | D16: 4 | E16: 33 | F16: 50 | G16: 3.06 | H16: 10 | L16: Jul | M16: 3 | N16: 33 | P16: 3.06 | Q16: 10 | S16: Maximum: for 10-min and daily periods use the highest of all operational combustion lines in any month.
A17: Aug | B17: 150 | D17: 4 | E17: 72 | F17: 50 | G17: 4.17 | H17: 14 | L17: Aug | M17: 4 | N17: 72 | P17: 4.17 | Q17: 14
A18: Sep | B18: 150 | D18: 7 | E18: 396 | F18: 50 | G18: 6.68 | H18: 18 | L18: Sep | M18: 7 | N18: 148 | P18: 6.68 | Q18: 18
A19: Oct | B19: 150 | D19: 7.5 | E19: 60 | F19: 50 | G19: 7.73 | H19: 31 | L19: Oct | M19: 8 | N19: 60 | P19: 7.73 | Q19: 31
A20: Nov | B20: 150 | D20: 6.5 | E20: 305 | F20: 50 | G20: 4.62 | H20: 24 | L20: Nov | M20: 4 | N20: 61 | P20: 4.62 | Q20: 24
A21: Dec | B21: 150 | D21: 3 | E21: 25 | F21: 50 | G21: 1.71 | H21: 5 | L21: Dec | M21: 2 | N21: 11 | P21: 1.71 | Q21: 5
L22: Annual | M22: =AVERAGE(M10:M21) -> 5 | O22: =MAX(O10:O21) -> 0 | P22: =AVERAGE(P10:P21) -> 5.023333333 | Q22: =MAX(Q10:Q21) -> 31
K24: =+A8 -> 2024 | L24: mg/Nm3 | M24: Highest daily 95%ile 10-min average | N24: Monthly mean of 10-min averages | O24: Highest 10-min average | P24: Monthly mean of daily averages | Q24: Highest daily average
K25: A2 | L25: Jan | M25: 16 | N25: 175 | P25: 16.54 | Q25: 27
L26: Feb | M26: 2 | N26: 56 | P26: 10.64 | Q26: 16
L27: Mar | M27: 10 | N27: 24 | P27: 10.28 | Q27: 15
L28: Apr | M28: 10 | N28: 39 | P28: 10.05 | Q28: 19
L29: May | M29: 11 | N29: 111 | P29: 10.85 | Q29: 15
L30: Jun | M30: 11 | N30: 169 | P30: 9.86 | Q30: 32
L31: Jul | M31: 5 | N31: 19 | P31: 3.55 | Q31: 52
L32: Aug | M32: 4 | N32: 69 | P32: 4.82 | Q32: 12
L33: Sep | M33: 7 | N33: 396 | P33: 7.29 | Q33: 41
L34: Oct | M34: 7 | N34: 45 | P34: 5.15 | Q34: 28
L35: Nov | M35: 9 | N35: 305 | P35: 11.42 | Q35: 23
L36: Dec | M36: 4 | N36: 25 | P36: 4.16 | Q36: 11
L37: Annual | M37: =AVERAGE(M25:M36) -> 8 | O37: =MAX(O25:O36) -> 0 | P37: =AVERAGE(P25:P36) -> 8.7175 | Q37: =MAX(Q25:Q36) -> 52
K39: =+A8 -> 2024 | L39: mg/Nm3 | M39: Highest daily 95%ile 10-min average | N39: Monthly mean of 10-min averages | O39: Highest 10-min average | P39: Monthly mean of daily averages | Q39: Highest daily average
K40: A3 | L40: Jan
L41: Feb
L42: Mar
L43: Apr
L44: May
L45: Jun
L46: Jul
L47: Aug
L48: Sep
L49: Oct
L50: Nov
A51: Comments : | L51: Dec
A52: Environment Agency explanatory note: The 10-minute average ELV is based on the “95th percentile”. In this case this means that 95% of the 10 minute averages in the relevant 24-hour period (i.e. 137) must be below 150 mg/Nm3, and 5% (i.e. 7) are allowed to be any value above 150 mg/Nm3. Whilst we expect operators to minimise CO emissions at all times, it is perfectly acceptable for the value of the maximum 10-minute average to be above 150 mg/Nm3, provided the 95th percentile ELV has been met for that period. | L52: Annual | M52: =AVERAGE(M40:M51) ->  | O52: =MAX(O40:O51) -> 0 | P52: =AVERAGE(P40:P51) ->  | Q52: =MAX(Q40:Q51) -> 0
K54: =+A8 -> 2024 | L54: mg/Nm3 | M54: Highest daily 95%ile 10-min average | N54: Monthly mean of 10-min averages | O54: Highest 10-min average | P54: Monthly mean of daily averages | Q54: Highest daily average
K55: A4 | L55: Jan
L56: Feb
L57: Mar
L58: Apr
L59: May
L60: Jun
L61: Jul
L62: Aug
L63: Sep
L64: Oct
L65: Nov
L66: Dec
L67: Annual | M67: =AVERAGE(M55:M66) ->  | O67: =MAX(O55:O66) -> 0 | P67: =AVERAGE(P55:P66) ->  | Q67: =MAX(Q55:Q66) -> 0
K69: =+A8 -> 2024 | L69: mg/Nm3 | M69: 95%ile 10-min avg maximum | N69: Monthly CO 10-min avg mean | O69: 10-min avg maximum | P69: Monthly daily mean | Q69: Monthly daily maximum
K70: A5 | L70: Jan
L71: Feb
L72: Mar
L73: Apr
L74: May
L75: Jun
L76: Jul
L77: Aug
L78: Sep
L79: Oct
L80: Nov
L81: Dec
L82: Annual | M82: =AVERAGE(M70:M81) ->  | O82: =MAX(O70:O81) -> 0 | P82: =AVERAGE(P70:P81) ->  | Q82: =MAX(Q70:Q81) -> 0

Sheet NH3
A1: =+'Cover Page'!$B$29 -> Annual Performance Report 2024 | E1: =+'Cover Page'!$B$33 -> Dudley Energy from Waste
A3: Monitoring of Ammnonia emissions | D3: Whole Installation | G3: See Notes in Cell Q3 | J3: =+A3 -> Monitoring of Ammnonia emissions | N3: Per Combustion Line | Q3: Notes:
Q4: User to add logic to complete Whole installation, Table A5:G18. From the data in Per Combustion Line, Table J6:O79, subject to No. of lines installed
A5: =+'Cover Page'!C39 -> 2024 | B5: 1/2 Hourly Reference Periods | E5: Daily Reference Periods
A6: mg/Nm3 | B6: 1/2 hourly NH3 ELV | C6: Monthly mean of half-hourly averages | D6: Highest half- hourly average | E6: Daily NH3 ELV | F6: Monthly mean of daily averages | G6: Highest daily average | J6: =+A5 -> 2024 | K6: mg/Nm3 | L6: Monthly mean of half-hourly averages | M6: Highest half- hourly average | N6: Monthly mean of daily averages | O6: Highest daily average
A7: Jan | B7: None | C7: =AVERAGE(L7,L22) -> 7.5 | D7: =MAX(M7,M22) -> 66 | E7: 15 | F7: =AVERAGE(N7,N22) -> 7.54 | G7: =MAX(O7,O22) -> 14 | J7: A1 | K7: Jan | L7: 6 | M7: 29 | N7: 6.04 | O7: 10
A8: Feb | B8: =+B7 -> None | C8: =AVERAGE(L8,L23) -> 6.5 | D8: =MAX(M8,M23) -> 48 | E8: 15 | F8: =AVERAGE(N8,N23) -> 6.62 | G8: =MAX(O8,O23) -> 10 | K8: Feb | L8: 6 | M8: 29 | N8: 6.16 | O8: 9
A9: Mar | B9: =+B8 -> None | C9: 7.5 | D9: 100 | E9: 15 | F9: 7.61 | G9: 16 | K9: Mar | L9: 7 | M9: 100 | N9: 6.94 | O9: 10 | Q9: Whole Installation table A5:G18:
A10: Apr | B10: None | C10: 7.5 | D10: 58 | E10: 15 | F10: 7.61 | G10: 11 | K10: Apr | L10: 8 | M10: 36 | N10: 8.44 | O10: 11 | Q10: Mean: for 1/2 hourly and daily periods calculate mean of values across all operational combustion lines for the month
A11: May | B11: None | C11: 6.5 | D11: 47 | E11: 15 | F11: 6.4 | G11: 14 | K11: May | L11: 8 | M11: 47 | N11: 7.58 | O11: 14
A12: Jun | B12: None | C12: 6 | D12: 59 | E12: 15 | F12: 6.12 | G12: 16 | K12: Jun | L12: 7 | M12: 59 | N12: 6.77 | O12: 11
A13: Jul | B13: None | C13: 4 | D13: 232 | E13: 15 | F13: 4.365 | G13: 12 | K13: Jul | L13: 6 | M13: 232 | N13: 6.26 | O13: 12 | Q13: Maximum: for 1/2 hourly and daily periods use the highest value across all operational combustion lines for the month
A14: Aug | B14: None | C14: 4 | D14: 51 | E14: 15 | F14: 4.25 | G14: 9 | K14: Aug | L14: 6 | M14: 42 | N14: 6.02 | O14: 9
A15: Sep | B15: None | C15: 4.5 | D15: 70 | E15: 15 | F15: 4.46 | G15: 13 | K15: Sep | L15: 6 | M15: 70 | N15: 6.29 | O15: 13
A16: Oct | B16: None | C16: 4 | D16: 57 | E16: 15 | F16: 3.825 | G16: 6 | K16: Oct | L16: 4 | M16: 57 | N16: 4.01 | O16: 6
A17: Nov | B17: None | C17: 4.5 | D17: 52 | E17: 15 | F17: 4.66 | G17: 10 | K17: Nov | L17: 6 | M17: 45 | N17: 6.45 | O17: 10
A18: Dec | B18: None | C18: 4 | D18: 35 | E18: 15 | F18: 4.265 | G18: 8 | K18: Dec | L18: 6 | M18: 35 | N18: 6.29 | O18: 8
K19: Annual | L19: =AVERAGE(L7:L18) -> 6.333333333 | M19: =MAX(M7:M18) -> 232 | N19: =AVERAGE(N7:N18) -> 6.4375 | O19: =MAX(O7:O18) -> 14
J21: =+A5 -> 2024 | K21: mg/Nm3 | L21: Monthly mean of half-hourly averages | M21: Highest half- hourly average | N21: Monthly mean of daily averages | O21: Highest daily average
J22: A2 | K22: Jan | L22: 9 | M22: 66 | N22: 9.04 | O22: 14
K23: Feb | L23: 7 | M23: 48 | N23: 7.08 | O23: 10
K24: Mar | L24: 8 | M24: 31 | N24: 8.28 | O24: 16
K25: Apr | L25: 7 | M25: 58 | N25: 6.78 | O25: 10
K26: May | L26: 5 | M26: 31 | N26: 5.22 | O26: 11
K27: Jun | L27: 5 | M27: 54 | N27: 5.47 | O27: 16
K28: Jul | L28: 2 | M28: 47 | N28: 2.47 | O28: 6
K29: Aug | L29: 2 | M29: 51 | N29: 2.48 | O29: 6
K30: Sep | L30: 3 | M30: 61 | N30: 2.63 | O30: 4
K31: Oct | L31: 4 | M31: 27 | N31: 3.64 | O31: 5
K32: Nov | L32: 3 | M32: 52 | N32: 2.87 | O32: 4
K33: Dec | L33: 2 | M33: 15 | N33: 2.24 | O33: 3
K34: Annual | L34: =AVERAGE(L22:L33) -> 4.75 | M34: =MAX(M22:M33) -> 66 | N34: =AVERAGE(N22:N33) -> 4.85 | O34: =MAX(O22:O33) -> 16
J36: =+A5 -> 2024 | K36: mg/Nm3 | L36: Monthly mean of half-hourly averages | M36: Highest half- hourly average | N36: Monthly mean of daily averages | O36: Highest daily average
J37: A3 | K37: Jan
K38: Feb
K39: Mar
K40: Apr
K41: May
K42: Jun
K43: Jul
K44: Aug
K45: Sep
K46: Oct
K47: Nov
A48: Comments : | K48: Dec
A49: An indicated ELV value of zero in the table above means that no ammonia limit is/was set in the permit. | K49: Annual | L49: =AVERAGE(L37:L48) ->  | M49: =MAX(M37:M48) -> 0 | N49: =AVERAGE(N37:N48) ->  | O49: =MAX(O37:O48) -> 0
J51: =+A5 -> 2024 | K51: mg/Nm3 | L51: Monthly mean of half-hourly averages | M51: Highest half- hourly average | N51: Monthly mean of daily averages | O51: Highest daily average
J52: A4 | K52: Jan
K53: Feb
K54: Mar
K55: Apr
K56: May
K57: Jun
K58: Jul
K59: Aug
K60: Sep
K61: Oct
K62: Nov
K63: Dec
K64: Annual | L64: =AVERAGE(L52:L63) ->  | M64: =MAX(M52:M63) -> 0 | N64: =AVERAGE(N52:N63) ->  | O64: =MAX(O52:O63) -> 0
J66: =+A5 -> 2024 | K66: mg/Nm3 | L66: Monthly mean of half-hourly averages | M66: Highest half- hourly average | N66: Monthly mean of daily averages | O66: Highest daily average
J67: A5 | K67: Jan
K68: Feb
K69: Mar
K70: Apr
K71: May
K72: Jun
K73: Jul
K74: Aug
K75: Sep
K76: Oct
K77: Nov
K78: Dec
K79: Annual | L79: =AVERAGE(L67:L78) ->  | M79: =MAX(M67:M78) -> 0 | N79: =AVERAGE(N67:N78) ->  | O79: =MAX(O67:O78) -> 0

Sheet Template changes log
A1: Log of changes to template (Environment Agency use only)
A3: Date | B3: Description of change | C3: New version number and date
A4: 2024-01-16 | B4: Air (periodic) tab: corrected default O2 reference from 6 to 11% | C4: Version 23.5a (for incinerators) - 16/01/2024
A5: 2024-09-23 | B5: Air (periodic) tab: corrected symbol for Thallium to Tl
A6: 2024-09-23 | B6: Air (periodic) tab: removed last year's references to different emission limit values applying from 03/12/23 and updated all relevant ELVs
A7: 2024-09-23 | B7: Tabs for continuously monitored pollutants (HCl, SO2 etc.): changed terminology in table headings to improve clarity
A8: 2024-09-23 | B8: Tabs for continuously monitored pollutants (HCl, SO2 etc.): removed last year's references to different emission limit values applying from 03/12/23 and updated all relevant ELVs
A9: 2024-09-23 | B9: Perf 1 tab: updated formula for water usage to report m3 rather than litres and corrected error with formula copying operator name
A10: 2024-09-23 | B10: Operational Summary tab: table added on start-ups and shut-downs
A11: 2024-09-23 | B11: Operational Summary tab: table added on dioxins and mercury protocols
A12: 2024-09-23 | B12: Operational Summary tab: table added on AST, QAL 2 and calibration functions
A13: 2024-09-23 | B13: CO2 N2O tab: various changes made to notes to reflect the fact that most plants should now have calibrated CEMS and flow meters + some have C14 samplers and more up to date industry data | C13: Version 24a (for incinerators) - 23/09/24
A14: 2024-11-08 | B14: CO2 N2O tab: Changed the N2O CO2 equivalence factor from 298 to 265 in line with recently updated government greenhouse gas figures: https://www.gov.uk/government/publications/greenhouse-gas-reporting-conversion-factors-2024
A15: 2024-11-08 | B15: CO2 N2O tab: Added an additional requirement for municipal EfW plants to state the yearly average biogenic percentage of the waste by mass, and reference to a document which sets out a methodology for calculating NCV of waste from the results of C14 sampling.
A16: 2024-11-08 | B16: Permit Compliance tab: Two additional columns added + explanatory notes to the table entitled "Summary of non-compliances under the permit" to allow CCS scores to be stated where relevant.
A17: 2024-11-08 | B17: Residue Quality tab: Note added explaining application of TOC and LOI limits and asking operators to report both metrics where measured. | C17: Version 24.1a (for incinerators) - 08/11/24
A18: 2024-11-27 | B18: Operational Summary tab: Tables on mercury & dioxins protocols and ASTs removed (covered instead by new tables added to updated Air 9 periodic monitoring form) | C18: Version 24.2a (for incinerators) - 27/11/24
